{"text_format":"3","workbook":"xlsx","n_sheets":7,"sheets":["P&G","General Building BOQ","HVAC","Hot & Cold Water","Fire","Electrical","Summary"],"not_rendered":{"external_links":14,"defined_names":274},"read":"whole","date_system":"1900"}

{"sheet":"P&G","index":0,"n_rows":890,"n_cols":34,"rows_kept":890,"merged":[[0,6,1,6]]}
["NATIONAL HEALTH LABORATORY SERVICE (NHLS) LABORATORY AT MANAPO HOSPITAL CENTRE",{"$nulls":5},"2026-01-10"]
["Bill of Quantities: Preliminary & General"]
["Page","Item","Description","Unit","Quantity","Rate","Amount"]
[]
[null,null,"The Tenderer is to ensure that the Excel version of the BOQ corresponds with the PDF version. No claims will be entertained for any losses and/or damages incurred as a result of the use of the Excel version of the BOQ for the calculation on tender prices."]
[]
[null,null,"SECTION NO. 1 : PRELIMINARIES AND GENERAL"]
[{"$nulls":33},"NOTE:  the column headings a - z must be present for the importer."]
[{"$nulls":33},"These contain an X which is set forecolor = white"]
[null,null,"BILL NO.1 : PRELIMINARIES"]
[]
["11",null,"BUILDING AGREEMENT AND PRELIMINARIES"]
[]
["11",null,"The JBCC Principal Building Agreement (May 2018 Edition 6.2) prepared by the Joint Building Contracts Committee shall be the applicable building agreement, amended as hereinafter described."]
[]
["11",null,"The JBCC Principal Building Agreement contract data forms an integral part of this agreement."]
[]
["11",null,"The JBCC General Preliminaries (May 2018 Edition 6.2) published by The Joint Building Contracts Committee for use with the JBCC Principal Building Agreement shall be deemed to be incorporated in these bills of quantities, amended as hereinafter described."]
[]
["11",null,"The contractor is deemed to have referred to the abovementioned documents for the full intent and meaning of each clause."]
[]
["11",null,"The clauses in the abovementioned documents are hereinafter referred to by clause number and heading only.  Where standard clauses or alternatives are not entirely applicable to this agreement such amendments, modifications, corrections or supplements as will apply are given under each relevant clause heading and such amendments, modifications, corrections or supplements shall take precedence notwithstanding anything to the contrary contained in the abovementioned documents."]
[]
["11",null,"Where any item is not relevant to this agreement such item is marked N/A (signifying 'not applicable')."]
[]
["11",null,"PREAMBLES FOR TRADES"]
[]
["11",null,"The Model Preambles for Trades (2017 edition) as published by the Association of South African Quantity Surveyors shall be deemed to be incorporated in these bills of quantities  and no claims arising from brevity of description of items fully described in the said Model Preambles will be entertained."]
[]
["11",null,"Supplementary preambles and project specifications are incorporated in these bills of quantities to satisfy the requirements of this project.  Such supplementary preambles and project specification shall take precedence over the provisions of the Model Preambles."]
[]
["11",null,"The contractor's prices for all items throughout these bills of quantities shall take account of and include for all of the obligations, requirements and specifications given in the Model Preambles and in any supplementary preambles."]
{"$rows_empty":7}
[null,"Amount Carried Forward"]
[null,"Brought forward"]
[]
["11",null,"PRICING OF PRELIMINARIES"]
[]
["11",null,"Should the contractor select Option A in terms of clause D4.0 of the contract data for the purpose of adjustment of these preliminaries , the amount entered into the amount column in these preliminaries is to be divided into one or more of the three categories provided namely fixed (F), value related (V) and time related (T)."]
[]
["12",null,"PRICING OF BILLS OF QUANTITIES"]
[]
["12",null,"The contractor is to allow opposite each item for all costs in connection therewith.  All prices to include, unless otherwise stated, for all materials, fabrication, conveyance and delivery, unloading, storing, unpacking, hoisting, labour, setting, fitting and fixing in position, cutting and waste (except where to be measured in accordance with the standard system of measurement), patterns, models and templates, plant, temporary works, returning of packaging, duties, taxes, imposts, establishment charges, overheads, profit and all other obligations arising out of the agreement."]
[]
[null,null,"Items left unpriced will be deemed to be covered in prices against other items throughout these  bills of quantities and no claim for any extras arising out of the contractor's omission to price any item will be entertained."]
[]
[null,null,"Prices for all plant, temporary works, services and other items shall include for the design, supply, maintenance, operating cost and subsequent removal and making good as necessary."]
[]
[]
["12",null,"LEGAL STATUS OF THE CONTRACTOR"]
[]
["12",null,"If the contractor constitutes a joint venture consortium or other unincorporated grouping of two or more persons then:"]
[]
[null,null,"1. These persons are deemed to be jointly and severally liable to the employer for the performance of this agreement;"]
[]
[null,null,"2. These persons shall notify the employer of their leader who has authority to bind the contractor and each of these persons; and"]
[]
[null,null,"3. The contractor shall not alter its composition or legal status without the prior written consent of the employer."]
[]
["12",null,"SECTION A: PRINCIPAL BUILDING AGREEMENT"]
[]
["12",null,"Interpretation (A1-A7):"]
[]
["12","1","Clause 1.0 -  Definitions and interpretation.","Item",{"v":1,"d":"1.00"}]
[]
["12","2","Clause 2.0 -  Law, regulations and notices."]
[]
[null,null,"Clause 2.0 is amended by adding the following sub-clause:"]
[]
[null,null,"2.5  Without limiting the generality of the provisions of clause 2.0, the contractor's attention is drawn to the provisions of Construction Regulations issued in terms of the Occupational Health and Safety Act, 1993.  It is specifically stated that the employer  shall ensure that the contractor has made provision for the cost of health and safety measures during the execution of the works . The contractor shall price opposite this item for compliance with the act and the regulations."]
[null,"Amount Carried Forward"]
[null,"Brought forward"]
[]
[null,null,"The contractor shall:"]
[]
[null,null,"1. Comply with the Occupational Health and Safety Act, 1993.  for the works."]
[]
[null,null,"2. Prepare and agree with the health and safety consultant the health and safety plan for the  works."]
[]
[null,null,"3. Co-operate with the health and safety consultant in all respects."]
[]
[null,null,"4. Manage the compliance of all subcontractors with the regulations and with the health and safety plan and specification."]
[]
[null,null,"The contractor warrants that it is, and will remain for the duration of this agreement, registered and in good standing with the compensation fund or with a licensed compensation insurer as contemplated in the Compensation or Occupational Injuries and Diseases Act 130 of 1993."]
[]
[null,null,"5. Preparation of Contractor's Site-Specific Health and Safety Plan in accordance with the client's Health and Safety Specification. This includes the description of an effective Safety Management System with allocated roles and responsibilities."]
[]
[null,null,"6. Implementation and Maintenance of the Site-Specific Health and Safety Plan."]
[]
[null,null,"7. Preparation of Contractor's Site-Specific Health and Safety File in accordance with the client's Health and Safety Specification."]
[]
[null,null,"8. Implementation and Maintenance of the Contractor's Site-Specific Health and Safety file."]
[]
[null,null,"9. Health and Safety Management and Control of Contractors to the Principal Contractor."]
[]
[null,null,"10. Provision of staff welfare facilities and Personal Protective Equipment (PPE)."]
[]
[null,null,"11. Provision for an adequate number of full-time Construction Health and Safety Officer."]
[]
[null,null,"12. Cost of Medical Surveillance (Entry and Exit)."]
[]
[null,null,"13. Provision of Emergency Equipment, including first aid boxes, emergency safety equipment, fire suppression equipment and others covered in the Health and Safety specification."]
[]
[null,null,"14. Provision of Health and Safety Training, induction and Awareness Programmes to all site staff."]
[]
[null,null,"15. Provision of all temporary and lifting works equipment, tools, and structures and fall protection/prevention equipment. Maintenance of safe access for staff and public."]
[]
[null,null,"16. Cost for Health and Safety signage and notices."]
[]
[null,null,"17. Submission of the Health and Safety File to the client upon completion of the project (hard and soft copies).","Item",{"v":1,"d":"1.00"}]
[]
[null,"Amount Carried Forward"]
[null,"Brought forward"]
[]
["13","3","Clause 3 .0 - Offer and acceptance.","Item",{"v":1,"d":"1.00"}]
[]
["13","4","Clause 4.0 - Cession and assignment.","Item",{"v":1,"d":"1.00"}]
[]
["13","5","Clause 5.0 -  Documents."]
[]
[null,null,"Clause 5.4 is amended by adding the words \"or construction programme.\" at the end of the clause.","Item",{"v":1,"d":"1.00"}]
[]
["13","6","Clause 6.0 -  Employer's agents.","Item",{"v":1,"d":"1.00"}]
[]
["13","7","Clause 7.0 - Design responsibility."]
[]
[null,null,"Clause 7.0 is amended by adding the following sub-clauses:"]
[]
[null,null,"7.4 Notwithstanding the provisions of sub-clause 7.2, the contractor shall ensure that every such subcontractor shall simultaneously with the signing of the relevant subcontract sign and deliver to the employer a design indemnity, materials warranty and workmanship warranty in favour of the employer."]
[]
[null,null,"7.5 Any subcontractor whose subcontract involves design work will be required to provide to the employer evidence of “professional indemnity” insurance for such design work."]
[]
[null,null,"7.6 If the contractor fails to obtain the necessary warranties and/or indemnities from the subcontractors, the design responsibility shall be deemed to devolve upon the contractor.","Item",{"v":1,"d":"1.00"}]
[]
["14",null,"Insurance and security (A8-A11)"]
[]
["14","8","Clause 8.0 - Works risk","Item",{"v":1,"d":"1.00"}]
[]
["14","9","Clause 9.0 - Indemnities","Item",{"v":1,"d":"1.00"}]
[]
["14","10","Clause 10.0 - Insurances"]
[]
[null,null,"Clause 10.0 is amended by the adding the following sub-clause:"]
[]
[null,null,"10.11 In the event of any occurrence which is likely to give rise to a claim under the insurances arranged by the employer, the contractor shall:"]
[]
[null,null,"1. In addition to any statutory requirement or other requirements contained in the agreement, immediately notify the employer’s insurance brokers by telephone, e-mail or telefax giving the circumstances, nature and estimate of the loss, damage or liability."]
[]
[null,null,"2. Complete a claim advice form in conjunction with both the principal agent and the employer and return to the insurance brokers without delay."]
[]
[null,null,"3. Assist as required, in negotiations of the settlement of claims with the insurers through the employer’s insurance brokers."]
[]
[null,null,"The employer shall have the right to make all and any enquiry on the site or elsewhere as to the cause and results of any such occurrences and the contractor shall give the employer and his insurers full facilities for carrying out such enquiries.","Item",{"v":1,"d":"1.00"}]
[]
[null,"Amount Carried Forward"]
[null,"Brought forward"]
[]
["14","11","Clause 11.0 -  Security"]
[]
[null,null,"Clause 11.10 is amended by adding the following at the end of the clause: \"and shall ensure that if applicable, a waiver of lien is included in all subcontracts and that the works executed on the site are kept free of all liens and other encumbrances at all times.\"","Item",{"v":1,"d":"1.00"}]
[]
["14",null,"Execution (A12 - A17)"]
[]
["14","12","Clause 12.0 -  Obligations of the parties"]
[]
[null,null,"Clause 12.2.6 is deleted in its entirety and replaced with the following:"]
[]
[null,null,"12.2.6.1 Immediately on award of the contract and prior to the commencement  on site, the contractor, shall prepare a working programme covering the first month of the construction period.  This working programme shall be prepared in conjunction with the principal agent and shall be subject to his approval."]
[]
[null,null,"12.2.6.2 During  the  first  month  of  the  construction   period the contractor  shall  prepare  a  programme of the  works together with a schedule of outstanding construction information in sufficient detail to ensure control of the execution of the works and to enable the principal agent to plan for and assess the progress of the works and timeously provide the necessary contract instructions."]
[]
[null,null,"The principal agent shall have the right to modify such programme to accommodate changes necessary in his opinion for co‑ordinating the project as a whole.  Any cost implications relating to such modification shall be dealt with in accordance with the provisions of the agreement."]
[]
[null,null,"12.2.6.3 The programme shall be drawn in accordance with the dates in the agreement for possession, sectional completion and practical completion. The programme and the schedule shall be updated and modified, as appropriate, and submitted to the principal agent whenever actual progress is not in accordance with the current programme and in any event whenever required by the principal agent."]
[]
[null,null,"12.2.6.4 Each programme shall:"]
[]
[null,null,"12.2.6.4.1 Comply with the agreement and show all information required by the agreement or otherwise required by the principal agent."]
[]
[null,null,"12.2.6.4.2 Represent the contractor’s intentions realistically (and the contractor’s intentions so represented shall be practicable)."]
[]
[null,null,"12.2.6.5 Be compiled based on the Critical Path Method of programming with the critical activities to be clearly highlighted."]
[]
[null,null,"12.2.6.6 Be compiled in such a way that logic is not constrained by resource limitations unless approved otherwise by the principal agent (and the logic of each subsequent programme shall be in accordance with the logic of the prior programme unless otherwise approved by the principal agent), and"]
[]
[]
[null,"Amount Carried Forward"]
[null,"Brought forward"]
[]
[null,null,"12.2.6.7 The programme (including each revision thereof) will be processed on the principal agent’s system and the contractor shall provide all the cooperation necessary to achieve this."]
[]
[null,null,"12.2.6.8 Documentation will not be available in complete detail at the commencement stage, however the contractor, in conjunction with the principal agent, shall progressively plan the works on provisional information, to an agreed level of detail relating to the level of information available and with sufficient scope to include future detail without disrupting the basic logic initially approved by the principal agent."]
[]
[null,null,"Where assumptions are made in regard to programming aspects, such assumptions shall be agreed by the contractor and the principal agent, and recorded in the programme."]
[]
[null,null,"12.2.6.9 The programme shall be updated and modified to accommodate a material change in circumstances or whenever reasonably required by the principal agent."]
[]
[null,null,"Should circumstances change to the extent where the contractor is of the opinion that changes to the programme are required, then the contractor shall have written request to the principal agent for such changes, clearly identifying the reasons for requiring such change.  The contractor and principal agent shall thereafter agree such changes, if any."]
[]
[null,null,"Should the principal agent be of the opinion that the programme requires revisions, and notwithstanding the fact that a request for such revision has not been received from the contractor, the principal agent shall be entitled to instruct the contractor to revise the programme accordingly, unless the contractor can submit reasonable justification for not doing so."]
[]
[null,null,"Any acceleration and/or special measures sanctioned by the principal agent together with associated effects shall be incorporated in a revision to the programme."]
[]
[null,null,"12.2.6.10 The programme (including each revision thereof) shall be prepared in conjunction with the principal agent and shall be subject to his approval. The approval of the principal agent shall be deemed to be given on the basis that the contractor represents that the programme complies with the requirements of clause 12.2.6."]
[]
[null,null,"The contractor shall be responsible at all times for maintaining the accuracy, validity and reasonableness of the programme, and the implementation thereof. That a programme has been prepared in conjunction with the principal agent or approved by him shall not release or relieve the contractor from any of his obligations or responsibilities under this agreement.  Without derogating from the foregoing, the contractor shall at all times bear the onus to demonstrate that the programme complies with the requirements of this agreement and, where applicable, constitutes an appropriate baseline programme for any purpose in connection with this agreement."]
[]
[null,null,"12.2.6.11 In addition to and based on the programme system and the format dictated above, the contractor shall devise detailed working programmes including but not limited to mechanical, electrical, wet services, lifts and other specialist installation's commissioning programmes. These shall be drawn on a regular basis (at least monthly), to the satisfaction of the principal agent."]
[]
[null,"Amount Carried Forward"]
[null,"Brought forward"]
[]
[null,null,"12.2.6.12 The contractor and principal agent shall, at regular intervals not exceeding fourteen (14) calendar days, assess the state of progress of the works relative to the current programme. Such assessment shall include the recording of actual commencement and completion dates for each activity. Agreed assessments shall constitute the official record of the progress at such point in time."]
[]
[null,null,"12.2.6.13 The contractor shall coordinate the nominated/selected subcontractor’s and direct contractor’s programmes with his own. Such working programmes shall at all times relate to the constraints of the current programme."]
[]
[null,null,"Clause 12.2.18 is amended by adding the following sub-clauses:"]
[]
[null,null,"12.2.18.1 Office accommodation. The contractor shall erect, maintain and remove at completion airconditioned office accommodation with suitable tables and chairs for meetings to be held on the  site.  Such offices shall be kept clean and fit for use at all times."]
[]
[null,null,"12.2.18.2 Notice board. The contractor shall erect in a position approved by the principal agent, a notice board as recommended by the South African Institute of Architects listing the names and logos of the employer, the contractor and the professional consultants. No subcontractor or supplier notice boards may be erected without the prior approval of the principal agent.","Item",{"v":1,"d":"1.00"}]
[]
["17","13","Clause 13.0 - Setting out"]
[]
[null,null,"Clause 13.0 is amended by adding the following sub-clauses:"]
[]
[null,null,"13.2.5 The contractor shall notify the principal agent if any encroachment of adjoining foundations, buildings, structures, pavements, boundaries, services, etc. exist in order that the necessary arrangements may be made for the rectification of any such encroachments."]
[]
[null,null,"13.2.6 The contractor shall continuously perform tolerance control checks throughout the contract period and report on these at regular intervals to the principal agent in a format approved by the principal agent."]
[]
[null,null,"13.2.6 Should the contractor fail to comply with the requirements of 13.2.5 and 13.2.6  to the satisfaction of the principal agent, progressively as the structure is constructed, the employer shall be entitled to commission other parties to do so on the contractor’s behalf and at the contractor’s expense. The contractor shall provide general attendance and all reasonable assistance to such parties.","Item",{"v":1,"d":"1.00"}]
[]
["17","14","Clause 14.0 - Nominated subcontractors","Item",{"v":1,"d":"1.00"}]
{"$rows_empty":9}
[null,"Amount Carried Forward"]
[null,"Brought forward"]
["17","15","Clause 15.0 - Selected subcontractors","Item",{"v":1,"d":"1.00"}]
[]
["17","16","Clause 16.0 -  Direct contractors"]
[]
[null,null,"Clause 16.0 is amended by adding the following sub-clauses:"]
[]
[null,null,"16.4 The contractor shall:"]
[]
[null,null,"1. Designate an area for the direct contractor to establish a temporary office and workshop and storage of equipment and materials."]
[]
[null,null,"2. Allow the use of personnel welfare facilities, where provided."]
[]
[null,null,"3. Provide water, lighting and single phase electric power to a position within 50m of the place where the direct contract work is to be carried out, other than fuel or power for commissioning of any installation."]
[]
[null,null,"4. Permit the direct contractor to use erected scaffolding, hoisting facilities, etc. provided by the contractor, in common with others having the like right while it remains erected on the site  [16.1]."]
[]
[null,null,"5. Co ordinate the works with that of the direct contractors.","Item",{"v":1,"d":"1.00"}]
[]
["17","17","Clause 17.0 - Contract instructions"]
[]
[null,null,"Clause 17.0 is amended by adding the following sub-clauses:"]
[]
[null,null,"Clause 17.1.21 Acceleration (irrespective of whether or not the principal agent rules that the contractor is entitled to a revision of the date of practical completion), but provided that a contract instruction to accelerate may not, unless otherwise agreed by the contractor, be issued at a time when it would not be reasonable for an experienced contractor to achieve the required acceleration given the available remaining period."]
[]
[null,null,"17.6 Instructions issued on site are to be recorded in a site instruction book which is to be supplied and maintained on site by the contractor."]
[]
[null,null,"17.7 Upon receipt of construction information, the contractor shall, before proceeding to execute the works, notify the principal agent where (i) any documents are missing or incomplete or insufficient, (ii) the construction information contains any errors which a reaasonable contractor would have discovered in reading or analysing the document concerned."]
[]
[null,null,"17.8 Where the contractor has not notified errors, discrepancies or deficiencies in construction information, the contractor shall not be entitled to any adjustment to the contract value or revision of the date for pracical completion."]
[]
[null,null,"17.9 If the contractor fails to obtain the necessary warranties and/or indemnities from the subcontractors, the design responsibility shall be deemed to devolve upon the contractor.”","Item",{"v":1,"d":"1.00"}]
[]
["18",null,"Completion (A18 - A24)"]
[]
["18","18","Clause 18.0 - Interim completion","Item",{"v":1,"d":"1.00"}]
[]
[null,"Amount Carried Forward"]
[null,"Brought forward"]
[]
["18","19","Clause 19.0 -  Practical completion"]
[]
[null,null,"Clause 19.3 is amended by the addition of the following new clause:"]
[]
[null,null,"Clause 19.3.5 - \"Notwithstanding the provisions of clauses 19.3.1 and 19.3.2 any defects occuring after the issue of the list of practical completion requiring remedial work that will in the opinion of the principal agent cause disruption, will cause the issue of the certificate of practical completion to be withheld until such defects have been rectified to the satisfaction of the principal agent\"."]
[]
[null,null,"Clause 19.6 shall be omitted and replaced by the following:"]
[]
[null,null,"19.6 If the contractor does not achieve practical completion by the applicable date for practical completion, then the employer shall at his sole discretion, be entitled to take possession of the works and the site and operate the building as if practical completion has been achieved, but practical completion shall not be deemed to have taken place and the applicable certificate of practical completion shall not be issued."]
[]
[null,null,"Such possession and operation by the employer shall not in any way whatsoever diminish or reduce the  contractor’s responsibility in terms of this contract which in this event shall  continue to be applied as if practical completion had not been achieved save  that the penalties as contained in the schedule shall be reduced  by 25 percent and the contractor shall complete the works in a manner which  will least interfere with the employer’s operation of the  building, including working after hours, if necessary."]
[]
[null,null,"The implications on insurances shall be agreed by the employer and  contractor prior to occupation by the employer."]
[]
[null,null,"Clause 19.0 is amended by adding the following sub-clause:"]
[]
[null,null,"19.8 Specific Requirements:"]
[]
[null,null,"Without derogating from the generality of the requirements for   practical  completion  the following specific requirements shall apply:"]
[]
[null,null,"All items on the practical completion list must be completed and attended to in its entirety."]
[]
[null,null,"All defects noted on the quality control sheets issued by the principal agent of the employer during the currency of the contract are to have been completed and attended to in their entirety."]
[]
[null,null,"Defects occurring after the issue of the practical completion list  requiring remedial work that will, in the opinion of the principal   agent, cause  disruption, will cause the issue of the certificate of practical completion to  be withheld until such defects have been rectified to the satisfaction of the principal agent."]
[]
[null,null,"The following certificates of compliance shall be required (excluding  others  that may be required by the local/national authority) from the contractor to achieve practical completion:"]
[]
[null,"Amount Carried Forward"]
[null,"Brought forward"]
[]
[null,null,"a) A certificate from the contractor that all aspects of the Construction Regulations of 2003 have been complied with."]
[]
[null,null,"b) A certificate from the contractor that the National Building Regulations have been complied with."]
[]
[null,null,"A complete set of as built drawings, maintenance and operating manuals together with all workmanship and material warranties and guarantees are to be compiled and issued to the principal agent prior to practical completion being granted.","Item",{"v":1,"d":"1.00"}]
[]
["19","20","Clause 20.0 - Completion in sections","Item",{"v":1,"d":"1.00"}]
[]
["19","21","Clause 21.0 -  Defects liability period and final completion","Item",{"v":1,"d":"1.00"}]
[]
["19","22","Clause 22.0 -  Latent defects liability period","Item",{"v":1,"d":"1.00"}]
[]
["19","23","Clause 23.0 - Revision of date for practical completion"]
[]
[null,null,"Clause 23.1.1 is replaced with \"Adverse weather conditions in excess of the monthly average recorded for the past 10 (ten) years by the nearest commonly recognised weather bureau in the region of the project\"."]
[]
[null,null,"Clause 23.1.2 is amended by adding the following at the end of the clause \"The removal or substitution of any materials and goods which do not conform to the specification or the contract drawings shall not constitute grounds for the extension of the construction period nor for the adjustment of the contract value"]
[]
[null,null,"Clause 23.2.12 is deleted in it's entirety."]
[]
[null,null,"Clause 23.0 is amended by adding the following sub-clauses:"]
[]
[null,null,"23.9 Revision to the date for practical completion shall only be considered when work on the critical path of the agreed programme for the works is delayed."]
[]
[null,null,"23.10 Acceleration"]
[]
[null,null,"23.10.1 Irrespective of whether or not the principal agent rules that the contractor is entitled to a revision of the date for practical completion, the principal agent shall nevertheless at any time, be entitled to issue a contract instruction to accelerate the progress of the remaining works, to ensure that the works are completed by the date for practical completion."]
[]
[null,null,"23.10.2 Upon receipt of such instruction, the contractor shall take necessary steps to ensure that the works are completed timeously, including the provision by him of additional resources, plant, manpower, etc. and the working of overtime or additional overtime beyond that contemplated at the time of tender (at all times adhering to the regulations and requirements of all authorities) and by all other adequate and proper means and methods. The contractor shall prove that such steps are being taken if called upon to do so."]
[null,"Amount Carried Forward"]
[null,"Brought forward"]
[]
[null,null,"23.10.3 The contractor’s entitlement to compensation arising out of or in respect of any revision to the date for practical completion that may have been granted by the principal agent, or alternatively, where the principal agent has instructed the contractor to accelerate, shall be adjudicated strictly in terms of Clause 26 hereof. The contractor shall not be entitled to any compensation of any nature whatsoever, other than that provided for in terms of Clause 26 hereof and where the principal agent has instructed the contractor to accelerate, the contractor’s additional entitlement shall be calculated by adding a further 30% to the value thereof."]
[]
[null,null,"23.11 Notwithstanding anything to the contrary contained in the contract documents, there shall be no revision of the date for practical completion for the first 15 (fifteen) working days authorised in terms of 23.1 and 23.2 nor shall there be any adjustment to the contract value for the first 15 (fifteen) working days authorised in terms of 23.2."]
[]
[null,null,"23.12 Notwithstanding anything to the contrary, the contractor shall not be entitled to a revision to the date for practical completion for delays arising from Municipal or other interruptions in municipal services to the site.","Item",{"v":1,"d":"1.00"}]
[]
["20","24","Clause 24.0 - Penalty for late or non-completion","Item",{"v":1,"d":"1.00"}]
[]
["20",null,"Payment (A25 - A27)"]
[]
["20","25","Clause 25.0 - Payment"]
[]
[null,null,"Clause 25.0 is amended by adding the following sub-clauses:"]
[]
[null,null,"25.3.4 Fluctuations in Costs"]
[]
[null,null,"All fluctuations in costs, with the exception of the increase in the rate of Value Added Tax, shall be for the account of the contractor."]
[]
[null,null,"25.5.1 The inclusion of materials and goods stored off  site  in the amount authorised for payment shall be at the sole discretion of the principal agent and such inclusions shall only be considered upon the provision, by the contractor, of an approved security."]
[]
[null,null,"Clause 25.10"]
[]
[null,null,"Replace \"fourteen (14)\" with \" twenty one (21)\""]
[]
[null,null,"25.18 Where prices are submitted by the contractor or subcontractor during the progress of the works in respect of contract instructions or in regard to a claim under the terms of the agreement and notwithstanding the fact that such prices may be used in an interim payment certificate, there is to be no presumption of acceptance. Should the principal agent wish to accept any such prices prior to the issue of the certificate of final completion, it shall be in writing.","Item",{"v":1,"d":"1.00"}]
[]
["21","26","Clause 26.0 - Adjustment of the contract value and final account"]
[]
[null,null,"Clause 26.0 is amended by adding the following sub-clause:"]
[]
[null,null,"26.14 All costs incurred by the contractor in the preparation of claims shall be borne by the contractor."]
[null,"Amount Carried Forward"]
[null,"Brought forward"]
[]
[null,null,"26.15 The contractor shall review, assess and adjudicate any claims received by him from any subcontractor and thereafter submit same to the principal agent with a recommendation to assist the principal agent in adjudicating the claim.","Item",{"v":1,"d":"1.00"}]
[]
["21","27","Clause 27.0 - Recovery of expense and/or loss","Item",{"v":1,"d":"1.00"}]
[]
["21",null,"Suspension and termination (A28 - A29)"]
[]
["21","28","Clause 28.0 - Suspension by the contractor."]
[]
[null,null,"Clause 28.0 is amended by the addition of the following:"]
[]
[null,null,"\"28.5 Suspension by the employer"]
[]
[null,null,"28.5.1 The employer may give five (5) working days notice to the contractor of the intention to suspend the works where the contractor has failed to:"]
[]
[null,null,"28.5.1.1 comply with legislation"]
[]
[null,null,"28.5.1.2 provide the construction guarantee"]
[]
[null,null,"28.5.1.3 pay nominated/selected subcontractors by the date stated in the nominated/selected subcontract data."]
[]
[null,null,"28.5.1.4 effect insurances where applicable"]
[]
[null,null,"28.5.1.5 to obtain the employer's consents\".","Item",{"v":1,"d":"1.00"}]
[]
["21","29","Clause 29.0 - Termination"]
[]
[null,null,"Clause 29.17.2 is deleted in its entirety and replaced with \"The Contractor shall not remove temporary structures, construction equipment without the written consent of the principal agent\".","Item",{"v":1,"d":"1.00"}]
[]
["21",null,"Dispute resolution (A30)"]
[]
["21","30","Clause 30.0 - Dispute resolution","Item",{"v":1,"d":"1.00"}]
[]
["21",null,"CHANGES MADE TO THE STANDARD JBCC CLAUSES"]
[]
["21",null,"A. Building Agreement:"]
[]
[null,null,"Clause 2 - addition"]
[]
[null,null,"Clause 5 - ammended"]
[]
[null,null,"Clause 7 - addition"]
[]
[null,null,"Clause 10 - addition"]
[]
[null,null,"Clause 11 - ammended"]
[]
[null,null,"Clause 12 - omitted and substituted"]
[]
[null,null,"Clause 13 - addition"]
[]
[null,null,"Clause 16 - addition"]
[]
[null,null,"Clause 17 - addition"]
[null,"Amount Carried Forward"]
[null,"Brought forward"]
[]
[null,null,"Clause 19 - omitted and substituted"]
[]
[null,null,"Clause 23 - omitted, added and substituted"]
[]
[null,null,"Clause 25 - ammened and addition"]
[]
[null,null,"Clause 26 - addition"]
[]
[null,null,"Clause 28- addition"]
[]
[null,null,"Clause 29 - omitted and substituted"]
[]
[]
[]
[null,null,"B. ASAQS Preliminaries:"]
[]
[null,null,"Clause 2.3 - addition"]
[]
[null,null,"Clause 6.3 - amended"]
[]
[null,null,"Clause 11.6 - Addition"]
[]
["22","31","Contract data"]
[]
[null,null,"Before submission of his tender the contractor is to complete the tenderer's selection in the contract data.","Item",{"v":1,"d":"1.00"}]
[]
["22",null,"SECTION B: PRELIMINARIES"]
[]
["22",null,"Definitions and interpretation (B1)"]
[]
["22","32","Clause 1.1 - Definitions","Item",{"v":1,"d":"1.00"}]
[]
["22","33","Clause 1.2 - Interpretation","Item",{"v":1,"d":"1.00"}]
[]
["22",null,"Documents (B2)"]
[]
["22","34","Clause 2.1 - Checking of documents","Item",{"v":1,"d":"1.00"}]
[]
["22","35","Clause 2.2 - Provisional bills of quantities","Item",{"v":1,"d":"1.00"}]
[]
["22","36","Clause 2.3 - Availability of construction information"]
[]
[null,null,"Budgetary allowances and provisional sums"]
[]
[null,null,"The budgetary allowances and/or provisional sums allocated for subsequent trades included in this agreement will be separately procured, based on multiple procurement of subcontractors during the construction period.","Item",{"v":1,"d":"1.00"}]
[]
["23",null,"Previous work and adjoining properties (B3)"]
[]
["23","37","Clause 3.1 - Previous work - dimensional accuracy","Item",{"v":1,"d":"1.00"}]
[]
["23","38","Clause 3.2 - Previous work -  defects","Item",{"v":1,"d":"1.00"}]
[]
["23","39","Clause 3.3 - Inspection of adjoining properties","Item",{"v":1,"d":"1.00"}]
[]
["23",null,"The site (B4)"]
[]
["23","40","Clause 4.1 - Handover of site in stages","Item",{"v":1,"d":"1.00"}]
[]
[null,"Amount Carried Forward"]
[null,"Brought forward"]
["23","41","Clause 4.2 - Enclosure of the works"]
[]
[null,null,"The contractor shall erect, maintain and remove at completion hoardings with gantries, fans, safety screens, barriers, access gates, covered gangways and the like as necessary for the enclosure of the works and elements thereof, all for the protection of the public and others.","Item",{"v":1,"d":"1.00"}]
[]
["23","42","Clause 4.3 - Geotechnical and other investigations","Item",{"v":1,"d":"1.00"}]
[]
["23","43","Clause 4.4 - Encroachments","Item",{"v":1,"d":"1.00"}]
[]
["23","44","Clause 4.5 - Existing premises occupied","Item",{"v":1,"d":"1.00"}]
[]
["23","45","Clause 4.6 - Services - known","Item",{"v":1,"d":"1.00"}]
[]
["23",null,"Management of contract (B5)"]
[]
["23","46","Clause 5.1 - Management of the works","Item",{"v":1,"d":"1.00"}]
[]
["23","47","Clause 5.2 - Progress meetings","Item",{"v":1,"d":"1.00"}]
[]
["23","48","Clause 5.3 - Technical meetings","Item",{"v":1,"d":"1.00"}]
[]
["23",null,"Samples, shop drawings and manufacturer's instructions (B6)"]
[]
["23","49","Clause 6.1 - Samples of materials","Item",{"v":1,"d":"1.00"}]
[]
["23","50","Clause 6.2 - Workmanship samples","Item",{"v":1,"d":"1.00"}]
[]
["23","51","Clause 6.3 - Shop drawings"]
[]
[null,null,"Clause B6.3 is hereby amended by the addition of the following:"]
[]
[null,null,"General responsibilities: The Contractor shall provide a person or persons who shall be available immediately upon commencement of the contract, whose responsibility will be:"]
[]
[null,null,"a) To familiarise himself with all drawings produced by the professional team.  This will involve a clear understanding of services and element co-ordination performed by the principal agent, in order that subcontractors can be properly briefed."]
[]
[null,null,"b) To provide the professional team with comprehensive lists of shop drawings to be prepared by relevant subcontractors."]
[]
[null,null,"c) To check all shop drawings for sufficiency prior to submission to the relevant consultant in the professional team.  It is expected that such checking will include all co-ordination and pro-active resolution of any conflicting services and elements.  It is also noted that resolution of co-ordination problems will require attendance at services and element co-ordination meetings, called by the principal agent as and when necessary."]
[]
[null,null,"The contractor shall, at his own expense, prepare and submit one reproducable print of shop drawings of all fabricated work, working or setting out drawings, shop details and schedules to the principal agent for approval by the relevant consultant/s and/or the employer as is appropriate and such work shall not be performed by the contractor until such approval has been given.  The contractor shall take cognisance of and adhere to the Project Document Numbering System, if any, in use on this contract."]
[]
[null,"Amount Carried Forward"]
[null,"Brought forward"]
[]
[null,null,"Procedures:"]
[]
[]
[null,null,"The contractor shall present a complete schedule showing the sequence of submission of shop drawings, including submission dates, for all trades and the scheduled dates for approval of all drawings.  This schedule shall take into account that the relevant consultant/s and the employer reserve a two weeks check period from the date of the receipt of all shop drawings and/or catalogue data."]
[]
[null,null,"All submissions shall bear the contractor's dated stamp of approval as evidence that they have been so checked and corrected by the contractor.  Any drawings, schedule or catalogue submitted without this stamp will not be considered by the principal agent and will be returned."]
[null,null,"All submissions shall be on dates as indicated in the above schedule and sufficiently in advance to allow the contractor to meet the fabrication deadlines. No claim for extensions to the contract time will be granted to the contractor by reason of his failure in this respect.  The contractor shall submit four copies of catalogue and data for approval. The contractor shall check all submissions for conformity with the contract drawings and specifications and correct any errors, omissions or deviations before their transmission to the principal agent."]
[]
[null,null,"When the principal agent advises the contractor that shop drawings have been approved, he shall immediately submit to the principal agent the original transparencies of such drawings so that the principal agent's stamp of approval may be appended thereto.  Thereafter the contractor shall furnish to the principal agent four prints of the approved shop drawings, setting out drawings and schedules.  The contractor shall also furnish to the works as many prints of the approved shop drawings and schedules as may be required.  No work shall be performed from any shop drawings and/or catalogues not stamped with the principal agent's approval."]
[]
[null,null,"The contractor shall be responsible for ensuring that all dimensions confirm to the dimensions of built work.  The principal agent's approval of any document or drawing shall not in any way vary his contractual or delictual obligations and liabilities to the employer or any other party, nor does it vary the contractual or delictual obligations and liabilities of the party submitting such document or drawing for approval."]
[]
[null,null,"If the submissions differ from the requirements of the contract, the contractor shall make specific mention of each difference in his letter of transmission with a request for substitution, together with his reasons for same, in order that, if acceptable, suitable action may be taken by the principal agent.  Otherwise the contractor will not be relieved of the responsibility for executing the work in accordance with the requirements of the Contract."]
[]
[null,null,"Corrections of shop drawings by the principal agent shall not change the scope of work.  Should any such correction be considered to constitute a change of the scope of work, the contractor shall notify the principal agent in writing within not more than seven calendar days of such change and shall not proceed with the fabrication until so authorised by the principal agent.  Claims for change of scope made after performance of the work constituting the claimed change of scope will not be considered."]
[]
[null,"Amount Carried Forward"]
[null,"Brought forward"]
[null,null,"Unless otherwise agreed with the principal agent, shop drawings shall be prepared to show all details of installation, including reticulation, fixing, etc. of all components and assemblies.","Item",{"v":1,"d":"1.00"}]
[]
["25","52","Clause 6.4 - Compliance with manufacturer's instructions","Item",{"v":1,"d":"1.00"}]
[]
["25",null,"Deposits and fees (B7)"]
[]
["25","53","Clause 7.1 - Deposits and fees","Item",{"v":1,"d":"1.00"}]
[]
["25",null,"Temporary services (B8)"]
[]
["25","54","Clause 8.1 - Water","Item",{"v":1,"d":"1.00"}]
[]
["25","55","Clause 8.2 - Electricity","Item",{"v":1,"d":"1.00"}]
[]
["25","56","Clause 8.3 - Ablution and welfare facilities","Item",{"v":1,"d":"1.00"}]
[]
["25","57","Clause 8.4 - Communication facilities","Item",{"v":1,"d":"1.00"}]
[]
["25",null,"Prime cost amounts (B9)"]
[]
["25","58","Clause 9.1 - Responsibility for prime cost amounts","Item",{"v":1,"d":"1.00"}]
[]
["25",null,"Attendance on subcontractors (B10)"]
[]
["25","59","Clause 10.1 - General attendance","Item",{"v":1,"d":"1.00"}]
[]
["25","60","Clause 10.2 - Special Attendance","Item",{"v":1,"d":"1.00"}]
[]
["25",null,"General (B11)"]
[]
["25","61","Clause 11.1 - Protection of the works","Item",{"v":1,"d":"1.00"}]
[]
["25","62","Clause 11.2 - Protection/isolation of existing/sectionally occupied works","Item",{"v":1,"d":"1.00"}]
[]
["26","63","Clause 11.3 - Security of the works","Item",{"v":1,"d":"1.00"}]
[]
["26","64","Clause 11.4 -  Notice before covering work","Item",{"v":1,"d":"1.00"}]
[]
["26","65","Clause 11.5 - Disturbance","Item",{"v":1,"d":"1.00"}]
[]
["26","66","Clause 11.6 - Environmental disturbance"]
[]
[null,null,"Controlling all forms of pollution"]
[]
[null,null,"The contractor shall be responsible for and take all precautions in controlling by whatever means necessary all forms of pollution during the construction period due inter alia to noise, artificial light, wind-blown sand, dust, deposits of mud, etc."]
[]
[null,null,"The contractor is to ensure that all roads which border the site and are used by the contractor during the execution of the works are kept clean and free of any dirt or debris caused by the execution of the works.","Item",{"v":1,"d":"1.00"}]
[]
["26","67","Clause 11.7 -  Works cleaning and clearing","Item",{"v":1,"d":"1.00"}]
[]
["26","68","Clause 11.8 - Vermin","Item",{"v":1,"d":"1.00"}]
[]
["26","69","Clause 11.9 - Overhand work","Item",{"v":1,"d":"1.00"}]
[]
["26","70","Clause 11.10 - Tenant installation","Item",{"v":1,"d":"1.00"}]
[]
["26","71","Clause 11.11 - Advertising","Item",{"v":1,"d":"1.00"}]
[null,"Amount Carried Forward"]
[null,"Brought forward"]
["26",null,"SECTION C: SPECIFIC PRELIMINARIES"]
[]
["26","72","Warranties for materials and workmanship"]
[]
[null,null,"Where warranties for materials and/or workmanship are called for, the contractor shall obtain a written warranty, addressed to the employer, from the entity supplying the materials and/or doing the work and shall deliver same to the principal agent on the final completion of the contract."]
[]
[null,null,"The warranty shall state that workmanship, materials and installation are warranted for a specific period from the date of final completion and that any defects that may arise during the specified period shall be made good at the expense of the entity supplying the materials and/or doing the work, upon written notice to do so."]
[]
[null,null,"The warranty will not be enforced if the work is damaged by defects in the execution of the works, in which case the responsibility for replacement shall rest entirely with the contractor.","Item",{"v":1,"d":"1.00"}]
[]
["26","73","Overtime"]
[]
[null,null,"Should overtime be required to be worked for any reason whatsoever, the costs of such overtime is to be borne by the contractor unless the principal agent has specifically authorised, in writing, prior to execution thereof, that costs for such overtime are to be borne by the employer.","Item",{"v":1,"d":"1.00"}]
[]
["26","74","Overloading"]
[]
[null,null,"The contractor shall take all necessary steps to ensure that no damage occurs due to overloading of any portion of the works or temporary works e.g. scaffolding, etc.  The contractor shall submit details of his proposed loading, storage, plant erection, etc., to the principal agent for approval prior to proceeding with such loading, storing or erecting and shall comply with and pay for the principal agent's requirements in connection with the provision of temporary support work, etc.  Any damage caused to the works overloading shall be made good by the contractor at his sole expense.","Item",{"v":1,"d":"1.00"}]
[]
["27","75","Propping of floors below"]
[]
[null,null,"The contractor is advised that propping of floors below may be required if he wishes to use any areas of completed suspended reinforced concrete slabs for vehicle access, storage of materials and goods  and location of plant, scaffolding, etc.  The location of these areas and any necessary propping shall be approved by the principal agent and the cost thereof shall be borne by the contractor.","Item",{"v":1,"d":"1.00"}]
[]
["27","76","Plant and special equipment"]
[]
[null,null,"The tenderer should include for all plant, special sacffolding and equipment necessary for placing in position and carrying out the installation as deemed necessary.","Item",{"v":1,"d":"1.00"}]
[]
[]
[]
[]
[]
[]
[null,"Amount Carried Forward"]
[null,"Brought forward"]
["27","77","Testing of flat roof waterproofing for watertightness"]
[]
[null,null,"Flat roof waterproof areas shall be prepared with small sand dykes around them of a size and enclosing an area approved by the  principal agent , flooded with water and kept 'ponded' for at least forty (40) hours as a test to ensure the watertightness of the waterproofing and before any further construction work is carried out above the waterproofing.","Item",{"v":1,"d":"1.00"}]
[]
["27","78","Broad based black economic empowerment (BBBEE)"]
[]
[null,null,"It is the expressed intention of the employer on this contract to ensure that the target as stipulated in the Construction Sector Charter under section 12 of the Broad Based Economic Empowerment Act, 20003 (Act No. 53 of 2003) are met."]
[]
[null,null,"Tenders submitted will be evaluated taking into account their empowerment rating."]
[]
[null,null,"The employer will be monitoring the black economic empowerment status of the contractor throughout the execution of the works."]
[]
[null,null,"The contractor is to submit to the principal agent on an annual basis a schedule of spend, split into vendors engaged as subcontractors and suppliers indicating their BBBEE rating including proof of the said rating.","Item",{"v":1,"d":"1.00"}]
[]
["27","79","Advertising rights"]
[]
[null,null,"The employer may elect to contract with advertising agencies for the erection of advertising hoardings, banners, wraps or the like for the duration of the contract.  The contractor shall not prevent such an arrangement and will assist in the facilitation of same. Position and type of advertising structure to be agreed with the principal agent so as not to hinder the contractor in the meeting of his obligations under this agreement.","Item",{"v":1,"d":"1.00"}]
[]
["28","80","Confidentiality"]
[]
[null,null,"The contractor undertakes to maintain in confidence any and all information regarding this project and shall obtain appropriate similar undertakings from all subcontractors and suppliers. Such information shall not be used in any way except in connection with the execution of the works."]
[]
[null,null,"No information regarding this project shall be published or disclosed without the prior written consent of the employer.","Item",{"v":1,"d":"1.00"}]
[]
["28","81","Media releases"]
[]
[null,null,"All rights of publication of articles in the media, together with any advertising relating thereto or in any way connected with this project, shall vest with the  employer."]
[]
[null,null,"The contractor together with his subcontractors shall not, without the prior written consent of the  employer , cause any statement or advertisement to be printed, screened or aired by the media.","Item",{"v":1,"d":"1.00"}]
[]
["28","82","Satisfaction of Contractor as to scope of insurances"]
[]
[null,null,"Submission of a tender shall be deemed as acceptance by the contractor that he is satisfied with the scope of the insurances effected by the employer, supplemented by any additional insurances considered necessary by himself."]
[]
[null,"Amount Carried Forward"]
[null,"Brought forward"]
[]
[null,null,"The employer warrants that the insurances effected by him shall remain in force for the duration stipulated in the agreement."]
[]
[null,null,"Any clarification of the scope of cover provided by the policies arranged by the employer should be obtained from the employer's representative."]
[]
[null,null,"The contractor warrants that he shall give all notices and shall observe all the terms and conditions and requirements of all insurances applicable to this contract."]
[]
[null,null,"Where the contractor is responsible for the appointment of nominated or selected subcontractor then the contractor shall:"]
[]
[null,null,"1. ensure that potential and appointed subcontractors are aware of the whole content of Clauses A8, A9, A10 and A11."]
[]
[null,null,"2. ensure the compliance of subcontractors with these Clauses where applicable."]
[]
[null,null,"In the event of any occurrence which is likely to give rise to a claim under the insurances arranged by the employer, the contractor / subcontractor shall:"]
[]
[null,null,"3. In addition to any statutory requirement or other requirements contained in the agreement, immediately notify the employer’s Insurance Brokers by telephone or telefax giving the circumstances, nature and an estimate of the loss or damage or liability;"]
[]
[null,null,"4. Complete a claims advice form, in conjunction with both the principal agent and the employer and return to the Insurance Brokers without delay;"]
[]
[null,null,"5. Assist as required, in negotiations of the settlement of claims with the insurers through the employer’s Insurance Brokers."]
[]
[null,null,"The employer shall have the right to make all and any enquiry on the site or elsewhere as to the cause and results of any such occurrence and the contractor shall give the employer and his insurers full facilities for carrying out such enquiries.","Item",{"v":1,"d":"1.00"}]
[]
["29","83","Method statement"]
[]
[null,null,"The Tenderer shall produce, when required to do so by the Principal Agent, a Method Statement outlining the methods of construction and labour and plant resources that he proposes to use in the execution of the Works.  Any approval given or observation made by the  Principal Agent shall not relieve the Contractor of his sole responsibility to adopt the methods of construction and to provide the labour and plant resources necessary for the due and proper timeous execution of the Works.","Item",{"v":1,"d":"1.00"}]
[]
["29","84","Mode of procedure"]
[]
[null,null,"Notwithstanding anything to the contrary contained herein the Principal Agent at all times reserves the right to direct the order in which the various parts of the Works are to be executed.  The Contractor shall give priority to any individual section or portion of the Works that, in the opinion of the Principal Agent, requires to be expedited."]
[]
[null,null,"Should the Contractor and/or Principal Agent be of the opinion that such instruction warrants a revision to the Programme, then the provisions of Clause B4.2.6 hereof shall apply."]
[]
[null,"Amount Carried Forward"]
[null,"Brought forward"]
[null,null,"Should it appear, in the Principal Agent’s opinion, that work in any area is not being executed in accordance with the requirements of the Programme, the Contractor shall provide additional manpower and resources and shall work additional overtime and do everything else required to bring the work back to programme to the satisfaction of the Principal Agent.","Item",{"v":1,"d":"1.00"}]
[]
["29","85","Tests and inspections prior to completion"]
[]
[null,null,"All specialist plant and equipment, subject to the principal agent’s sole discretion, is subject to acceptance tests, which shall be arranged in the works of the contractor and/or subcontractors supplier within 10 days of notification that such plant or equipment is available for testing. The contractor and/or subcontractor shall inform the principal agent in writing, indicating the exact dates for these acceptance tests during the course of the last month of manufacture of such plant or equipment."]
[]
[null,null,"In the event that the principal agent or his representatives cannot witness such tests, the employer may:"]
[]
[null,null,"appoint a specialist inspection organisation to witness such tests at his expense on behalf of the principal agent or his representatives."]
[]
[null,null,"OR"]
[]
[null,null,"accept the contractor and/or subcontractor’s certificate testifying as to the quality and performance of the specialist plant/equipment so supplied."]
[]
[null,null,"Should no inspection have been made by the date indicated by the contractor and/or subcontractor as set out above, the equipment will be deemed as accepted and packed accordingly for delivery."]
[]
[null,null,"The final acceptance will take place on site in the presence of the contractor and/or subcontractor responsible for the commissioning of the equipment. The principal agent’s representative shall also be present."]
[]
[null,null,"The contractor and/or subcontractor shall demonstrate to the principal agent the full scope of operation of the installation and shall ensure that he is satisfied that the principal agent is fully aware of all the operational aspects of the installation prior to handover at practical completion stage."]
[]
[null,null,"The principal agent shall be afforded access at all reasonable times to such part of the works on site or at the contractor and/or subcontractor’s premises or the premises of the manufacturer of component parts, as may be necessary for the purpose of inspecting, examining and testing the materials, workmanship and performance of any plant or equipment for the works."]
[]
[null,null,"The contractor and/or subcontractor shall be responsible for the tests required by any local statute, building regulation, etc."]
[]
[null,null,"Any breakdown or mechanical failure and any damage or consequential losses which may arise from such breakdown, mechanical or structural failure, will be the responsibility of the contractor and/or subcontractor.","Item",{"v":1,"d":"1.00"}]
[]
["30","86","Quality control and quality assurance"]
[]
[null,null,"The contractor shall be required to provide suitably qualified and experienced staff capable of executing the work to the required standard and quality."]
[]
[null,"Amount Carried Forward"]
[null,"Brought forward"]
[null,null,"Definitions:"]
[]
[null,null,"The following definitions are applicable:"]
[]
[null,null,"1 Quality Policy: The overall intentions and direction of an organisation as regards quality."]
[]
[null,null,"2 Quality System: The organisational structures, responsibilities, procedures, processes and resources for implementing quality policy."]
[]
[null,null,"3 Quality Control: The operational techniques and activities that are used to fulfil requirements of quality."]
[]
[null,null,"4 Quality Assurance: All those planned and systematic actions necessary to provide adequate confidence that a product or service will satisfy given requirements for quality."]
[]
[null,null,"Generally"]
[]
[null,null,"The contractor shall submit his quality policy and comprehensive quality system proposals prior to appointment and within one week of being requested by the principal agent to do so.  The quality system shall be drawn up to meet the requirements set out herein and incorporating all additional requirements and controls the contractor considers necessary for effective quality control and assurance of products and service."]
[]
[null,null,"The contractor shall provide dedicated and experienced staff capable of implementing the proposed quality system."]
[]
[null,null,"The principal agent shall comment on the quality system within two weeks of receipt of same for the contractor outlining additions or amendment considered necessary for acceptance of the quality systems.   The contractor shall meet with the principal agent and amend the contents of the quality systems according to the principal agent’s comments.  Amendments to the system shall be made within one week of the principal agent’s comments."]
[]
[null,null,"Upon final acceptance of the quality system, it shall form a quality manual which shall, inter alia, contain the following:"]
[]
[null,null,"1. Quality policy"]
[]
[null,null,"2. Organisational goals and structures"]
[]
[null,null,"3. Internal audit plan incorporating resources, documentation, procedures and processes, etc."]
[]
[null,null,"4. Record keeping"]
[]
[null,null,"5. Reports: format and content"]
[]
[null,null,"6. Follow up actions and audit finding"]
[]
[null,null,"7. Testing: including outside testing by CSIR, SABS, PCI and others"]
[]
[null,null,"8. Measurement control"]
[]
[null,null,"9. Non-conformance: identification, review, corrective action, prevention of recurrence, etc."]
{"$rows_empty":7}
[null,"Amount Carried Forward"]
[null,"Brought forward"]
[null,null,"The acceptance of the quality system by the principal agent does not supersede or negate any other quality control conditions stipulated elsewhere in the contract documentation and in the instance of contradiction of requirements being identified, specific requirements shall override general requirements. Acceptance of the system by the principal agent shall not in any way supersede, negate or alter the intent, content or interpretation of the specification or conditions of contract specified elsewhere in the contract documentation.  Acceptance of the system by the principal agent does not in any way relieve the contractor of his responsibility to satisfy the conditions of contract and to achieve and maintain the specified standards.  The quality system is an audit procedure and does not necessarily describe the contractors total responsibility in terms of quality control."]
[]
[null,null,"The principal agent may from time to time call for the quality control assurance data sheets for random checking of:"]
[]
[null,null,"- The manner in which the system is being administrated,"]
[]
[null,null,"- The technical acceptability of the contents of the sheets, and"]
[]
[null,null,"- The effectiveness of the system in controlling the attainment of the  required end product."]
[]
[null,null,"If the system is found to be inadequate or ineffective the principal agent will have the right to declare the system or parts thereof as being areas of “non-performance”. In the event of the principal agent instructing the contractor by an architect’s instruction of an area of “non-performance” the following options may be implemented by the principal agent at no additional costs to the client and without any claim for delays:"]
[]
[null,null,"The structure for approval may be altered necessitating the signature of quality control and assurance data sheets by designated members of the professional team before work of a particular nature and/or in a particular area can proceed through the various check stages of the system."]
[]
[null,null,"The structure of the system may be altered by extending the detail of checking required by the system and/or the frequency at which check sheets have to be produced."]
[]
[null,null,"The geographical boundaries of a typical checking operation may be altered thereby requiring the contractors to perform more comprehensive checks on smaller portions of the work."]
[]
[null,null,"The contractor shall react immediately to an instruction by the principal agent regarding any alteration to the procedure of the system.  On receipt of an instruction on any “non-performance” from the principal agent the contractor shall not proceed with any of the affected work until acceptance of the revised procedure has been obtained from the principal agent."]
[]
[null,null,"Once the principal agent is satisfied that the revised quality control and assurance procedures are effective, the contractor will be informed by means of an official principal agent’s instruction of the extent to which the system may revert back to the principle of “management by exception”.  It is envisaged that the system should generally operate on such a basis and providing the results are satisfactory, the contractor is not expected to attain approval by counter-signature of every quality control data sheet."]
[]
[null,null,"In instances where up-front inspection is an industry norm (e.g. inspection of reinforcing by the structural engineer) or where the specification demands such inspection, the contractor must take this into account when compiling the quality control system."]
[null,"Amount Carried Forward"]
[null,"Brought forward"]
[]
[null,null,"It is envisaged that “samples and mock-ups” shall be extensively used to define the accepted standards of workmanship and materials to be used.  A lockable sample room with shelving must be provided by the contractor to accommodate all loose samples for the duration of the project.  The contractor shall also prepare and maintain a register of all samples indicating numbers, date, bill of quantities and specification reference, approval and relevant documents."]
[]
[null,null,"The principal agent will submit a quality report indicating areas of concern with regard to the quality of the project.  The contractor is to remedy the works within a two week period or supply the principal agent with a programme indicating the duration of remedial work for specific items. Such programme will be subject to the reasonable approval of the principal agent.","Item",{"v":1,"d":"1.00"}]
[]
["33","87","Commisioning and testing"]
[]
[null,null,"The contractor and/or subcontractor shall commission and test the entire installation at his own expense, including provision of all test equipment, fuel and power, and everything necessary for testing. Such testing is to be done in the presence of the principal agent, who shall have been notified of the dates and approximate duration of the tests, sufficiently in advance so as to allow attendance at such tests.","Item",{"v":1,"d":"1.00"}]
[]
["33","88","Local Labour Participation"]
[]
[null,null,"Contractors will be required to, as far as reasonably possible and without derogating from the overall efficiency of the contract, employ a target percentage of members of the local community to conduct basic labour activities for the contract works. In order for someone to qualify as local labour they have to reside in the local area or ward in which the project is undertaken. The target percentage for this project has been set at 30% of the contractor’s labour force employed on the contract. The contractor will be required to:"]
[]
[null,null,"1. Determine the type and skill level from the labour work force that will be utilised for employment on the contract"]
[]
[null,null,"2. Advertise / put notices up for this inviting potential work force members to submit CV’s at the site offce."]
[]
[]
[null,null,"3. Have available a competent representative, that will receive CV’s as well as to entertain any queries from potential labourers."]
[]
[null,null,"4. Compile on a schedule, the list of CV’s received, for ease of reference, which can at any time be requested by the principal agent."]
[]
[null,null,"5. At his own discretion and at random, make selections from this list for employment of local labourers."]
[]
[null,null,"6. Report against the set target percentage for local labour as part of his fortnightly Progress Reports to the Principal Agent.","Item",{"v":1,"d":"1.00"}]
[]
["33","89","Access and security procedures"]
[]
[null,null,"The contractor shall ensure that all personnel, including all subcontractors,"]
[]
[null,null,"comply with the employer's access and security procedures."]
[]
[]
[null,"Amount Carried Forward"]
[null,"Brought forward"]
[null,null,"The contractor shall at all times prevent access by all unauthorised persons to the works and the site and set up notice boards to that effect."]
[]
[null,null,"No workmen or labourers shall be allowed, under any circumstances, to"]
[null,null,"sleep or deposit any belongings on the premises. The contractor must"]
[null,null,"provide an independent shelter or shed required for any labour or watchman left on the site after working hours. The facility required and security arrangement are to be specifically agreed in writing with the principal agent."]
[]
[null,null,"The contractor shall take all measures necessary to ensure that no workmen are allowed into the operational areas without the permission of the principal agent.","Item",{"v":1,"d":"1.00"}]
[]
["34","90","Security at Completion"]
[]
[null,null,"At completion, the Contractor shall leave the Works secure with all accesses locked. The Contractor shall account for and hand over to the Principal Agent all keys, properly labelled with an itemised schedule to be signed by the Principal Agent as receipt.","Item",{"v":1,"d":"1.00"}]
[]
["34",null,"SUMMARY OF CATEGORIES"]
[]
[null,null,"Category : Fixed  R………………………….."]
[]
[null,null,"Category : Value  R………………………….."]
[]
[null,null,"Category : Time   R………………………….."]
[]
[]
[]
[]
[null,null,"Bill Total Carried Forward"]

{"sheet":"General Building BOQ","index":1,"n_rows":1210,"n_cols":8,"rows_kept":1210,"merged":[[0,6,1,6]]}
["NATIONAL HEALTH LABORATORY SERVICE (NHLS) LABORATORY AT MANAPO HOSPITAL CENTRE",{"$nulls":5},"2026-01-10"]
[" Bill of Quantities: General Building"]
["Page","Item","Description","Unit","Quantity","Rate","Amount","x"]
[]
[null,null,"BILL NO.1 : ALTERATIONS"]
[]
[null,null,"The Tenderer is referred to the relevant clauses in the seperate document 'Model Preambles for Trades' (2017 Edition) and the Supplementary Preambles hereunder."]
[]
[null,null,"SUPPLEMENTARY PREAMBLES"]
[]
[null,null,"The Tenderer should include for all plant, special scaffolding and equipment necessary for placing in position, horizontal carting over roof and hoisting from ground level."]
[]
[null,null,"View site:"]
[]
[null,null,"Before submitting his/her tender the tenderer shall visit the site and satisfy himself as to the nature and extent of the work to be done and the value of the materials salvageable from the alterations.  No claim for any variations of the contract sum in respect of the nature and extent of the work or of inferior or damaged materials will be entertained."]
[]
[null,null,"Work and Materials:"]
[]
[null,null,"The work to be done and materials to be used in the works on site are to be similar to those specified in the new work in so far as they apply.  All rubble and debris from the pulling down are to be carted away without delay and the site is to be left clean and tidy."]
[]
[null,null,"Notices:"]
[]
[null,null,"The Contractor shall allow for the disconnection of electric, light, telephone, water and drainage services, etc., and he is to pay all fees and deposits in connection therewith."]
[]
[null,null,"The Contractor shall, before commencing work, obtain all necessary authorisation for carrying out the work, by whatever means including the use of pneumatic equipment or blasting, give all necessary notices and pay all charges and fees in connection therewith. He shall also comply with all regulations pertaining to Rodent Extermination,  and he shall obtain the requisite Clearance Certificates and pay all necessary fees. All receipts and certificates shall be left in the safekeeping of the Principal Agent. All the abovementioned charges and fees shall be paid by the Contractor and included in his prices The Contractor shall give ample notice to the Principal Agent and Local Authorities regarding any disconnections necessary prior to the removal or interruption of electrical or telephone cables, water and sanitary services, etc."]
[]
[null,null,"Demolitions:"]
[]
[null,null,"All demolition work shall be carried out in accordance with the local By-laws and to the requirements of the Authorities and Building Regulations."]
[null,null,"Water, etc.:"]
[]
[null,null,"The Contractor shall allow for watering the works with a jet or spray from a hose sufficiently to prevent any nuisance from dust."]
{"$rows_empty":7}
[null,"Amount Carried Forward"]
[null,"Brought forward"]
[]
[null,null,"Temporary coverings, screens, etc.:"]
[]
[null,null,"The Contractor shall supply, erect and maintain in position as required any temporary coverings to protect the existing work and property from damage and inclement weather during the progress of the works and particulary where and when existing roof coverings are removed. The Contractor will be held responsible for any damage to property or goods in the existing building due to his not having taken adequate precautions, and all damage caused shall be made good at this own expense. He must allow for providing all necessary plastic or wood framed screens, partitions, tarpaulin, barriers, etc., to protect the work and prevent any nuisance from dust as may be required or directed."]
[]
[null,null,"Damage to persons or property:"]
[]
[null,null,"The Contractor will be responsible for any damage to persons or property and for the safety of structures and he shall allow for protecting and indemnifying persons using the existing buildings from injury by virtue of building operations, including providing necessary barriers, signs, etc."]
[]
[null,null,"Making good:"]
[]
[null,null,"Prices of all work described throughout these Bills of Quantities shall include for making good, in all trades except Painting, unless otherwise described."]
[]
[null,null,"All new materials used in making good are to match existing and the works shall be left complete and perfect in every respect."]
[]
[null,null,"Junction of new and existing:"]
[]
[null,null,"Making good at the junction of new and existing work shall include for piecing out, cutting through or removing short lenghts of existing material, for supplying short lengths of new material and for jointing to match existing."]
[]
[null,null,"Existing and adjoining buildings, etc.:"]
[]
[null,null,"Before submitting his/her tender the tenderer shall visit the site and satisfy himself as to the nature and extent of the work to be done and the value of the materials salvageable from the alterations.  No claim for any variations of the contract sum in respect of the nature and extent of the work or of inferior or damaged materials will be entertained."]
[]
[null,null,"Cutting through, etc.:"]
[]
[null,null,"Cutting away from, breaking or cutting through shall include for neatly cutting through brick or concrete walls, floors, skirtings, etc., leaving ends fair or preparing ends for extensions, for facing up jambs, reveals, etc., with brickwork cut toothed and bonded to existing and for flushing up concrete jambs, reveals, etc., in cement mortar."]
[]
[null,null,"Explosives:"]
[]
[null,null,"No explosives whatsoever may be used  for  alteration  purposes unless otherwise stated."]
[]
[]
[]
[]
[null,"Amount Carried Forward"]
[null,"Brought forward"]
[]
[null,null,"TEMPORARY BARRIERS, SCREENS, ETC."]
[]
[null,null,"Temporary barriers, screens, etc. including removal:"]
[]
[null,null,"Type A Hoarding\nThis hoarding will be applicable where construction work takes place adjacent to other tenants to minimise noise, dust and visual screening.\nGalvanised floor track 61mm wide fixed to floor and soffit with suitable fasteners at 600mm centres minimum. 16mm chipboard with melamine finish (Grey Cambrink) on the public side and 12mm chipboard (when shelving is to be hung onto the walls) or 12.7mm Gypsum plasterboard for lighter usage The melamine boards are cut into module width of 900mm or 1200mm and the heights will be those that can be manoeuvred by human labourers without any hindrance to the public where applicable, preferably 3000 high. The melamine board will be held in place by a tophat section on the vertical joint, colour black. The backboard will be screwed directly to the grid. Hoarding is to be filled with apporved insulating material for sound proofing:\n"]
[{"$nulls":6},{"$f":"E84*F84","v":0}]
[null,null,"Type A Hoarding +- 5.5m high","m",{"v":15.6,"d":"15.60"},{"v":25,"d":"R25.00"},{"$f":"+F85*E85","v":{"v":390,"d":"R390.00"}}]
[]
[null,null,"REMOVAL OF EXISTING WORK"]
[]
[null,null,"Breaking down and removing brickwork, etc.:"]
[]
[null,null,"Half brick wall.","m²",{"v":11.559999999999999,"d":"11.56"}]
[]
[null,null,"One brick wall.","m²",340.68]
[]
[null,null,"Taking out and removing doors, windows, etc. including thresholds, sills, etc., (building up openings and making good finishes elsewhere):"]
[]
[null,null,"Timber single door and steel frame, size approximately 813 x 2032mm high overall from brick walls.","No",{"v":17,"d":"17.00"}]
[]
[null,null,"Timber double door and steel frame, size approximately 1600 x 2100mm high overall from brick walls.","No",{"v":3,"d":"3.00"}]
[]
[null,null,"Glazed steel windows from one brick wall","m²",{"v":56.11999999999999,"d":"56.12"}]
[]
[null,null,"Carefully taking down and removing roofs, floors, panelling, ceilings, partitions, etc.:"]
[]
[null,null,"Drywall partitions 2.8m high including doors, windows, borrowed lights, etc., plugged onto concrete floors.","m"]
[]
[null,null,"Taking out and removing sundry joinery work, fittings, etc.:"]
[]
[null,null,"Joinery.","m",{"v":117.3,"d":"117.30"}]
[]
[null,null,"Timber cornices, skirtings, etc.","m",208.52]
[]
[null,null,"Taking up and removing wood block floor coverings, vinyl floor coverings, carpets, etc and preparing screeds for new floor coverings:"]
[]
[null,null,"Vinyl tile floor covering","m²",{"v":578.8,"d":"578.80"}]
[]
[null,null,"Carpet tile floor covering, including scabbling up glue.","m²"]
[]
[]
[]
[null,"Amount Carried Forward"]
[null,"Brought forward"]
[]
[null,null,"Hacking up and removing ceramic tiles including removing mortar bed or adhesive from concrete or brickwork and preparing surfaces for new screed, plaster, tiles finish, etc. (finishes elsewhere):"]
[]
[null,null,"200 x 200mm Ceramic tiles to walls.","m²",614.04]
[]
[null,null,"300 x 300mm Ceramic tiles to floors.","m²"]
[]
[null,null,"Tile skirtings 100mm high.","m"]
[]
[null,null,"Taking out and removing piping, sanitary fitting, etc. including cutting off as necessary, disconnecting piping and sealing from fittings and making good floor and wall finishes (making good tiling and paintwork elsewhere):"]
[]
[null,null,"Wash hand basin.","No",{"v":1,"d":"1.00"}]
[]
[null,null,"WC pan with cistern.","No",{"v":2,"d":"2.00"}]
[]
[null,null,"Stainless steel sink and drainer.","No",{"v":2,"d":"2.00"}]
[]
[null,null,"Taking out and removing damaged glazing from existing windows and doors:"]
[]
[null,null,"Glass from steel windows including cleaning out rebates and preparing for new glass (new glass elsewhere).","m²"]
[]
[null,null,"BUILDING UP OPENINGS"]
[]
[null,null,"Brickwork in NFP bricks in class II mortar in building up:"]
[]
[null,null,"One brick walls.","m²",{"v":30.599999999999998,"d":"30.60"}]
[]
[null,null,"Sundries:"]
[]
[null,null,"Cutting toothings and bonding new brickwork to existing.","m²",{"v":34,"d":"34.00"}]
[]
[null,null,"MAKING GOOD OF FINISHES, ETC."]
[]
[null,null,"Preparatory work to existing floors with 'Pavelite' or similar approved, applied in strict accordance with the manufacturer's instructions on:"]
[]
[null,null,"Floors in patches.","m²",{"v":57.879999999999995,"d":"57.88"}]
[]
[null,null,"Floors where 90mm partitions removed.","m"]
[]
[null,null,"Floors where half brick walls removed.","m²",{"v":35.224000000000004,"d":"35.22"}]
[]
[null,null,"Making good internal cement plaster:"]
[]
[null,null,"Walls in patches.","m²",352.24]
[]
[null,null,"Concrete ceilings in patches.","m²"]
[]
[null,null,"CORE DRILLING, PENETRATIONS, OPENINGS, ETC."]
[]
[null,null,"Core drilling through existing reinforced concrete slabs, floors, walls, etc., with and including making good surrounding finish and removing concrete, etc.:"]
[]
[]
[]
[null,"Amount Carried Forward"]
[null,"Brought forward"]
[]
[null,null,"Core drill 50mm diameter opening in slabs 300mm thick.","No",{"v":3,"d":"3.00"}]
[]
[null,null,"Ditto, but opening size approximately 100mm diameter.","No",{"v":3,"d":"3.00"}]
[]
[null,null,"Chasing into brickwork, with and including making good to match existing once pipe installed:"]
[]
[null,null,"Chase into brickwork for a 50mm diameter pipe (Pipe measured elswhere).","m"]
[]
[null,null,"BUDGETARY ALLOWANCE"]
[]
[null,null,"Allow a Budgetary Allowance of R20,000 ( Rand) for Alterations to be used as directed by the Principal Agent and to be deducted in whole or in part if not required.","Item",{"v":1,"d":"1.00"},{"v":20000,"d":"R20,000.00"},{"$f":"E189*F189","v":{"v":20000,"d":"R20,000.00"}}]
[{"$nulls":6},0]
[{"$nulls":6},0]
["TOTAL FOR THIS BILL:"]
[{"$nulls":6},0]
[null,null,"BILL NO.2 : MASONRY",{"$nulls":3},0]
[{"$nulls":6},0]
[null,null,"The Tenderer is referred to the relevant clauses in the seperate document 'Model Preambles for Trades' (2017 Edition) and the Supplementary Preambles hereunder.",{"$nulls":3},0]
[{"$nulls":6},0]
[null,null,"BRICKWORK",{"$nulls":3},0]
[{"$nulls":6},0]
[null,null,"Sizes in descriptions:",{"$nulls":3},0]
[{"$nulls":6},0]
[null,null,"Where sizes in descriptions are given in brick units, one brick shall represent the length and half brick the width of a brick.",{"$nulls":3},{"$f":"E202*F202","v":0}]
[{"$nulls":6},0]
[null,null,"Bagged and sealed walls:",{"$nulls":3},0]
[{"$nulls":6},0]
[null,null,"Walls in two skins described as bagged and sealed shall be deemed to include having the outer face of the inner skin bagged with 1:6 cement and sand mixture and sealed with two coats   bitumen emulsion waterproofing coating.",{"$nulls":3},0]
[{"$nulls":6},0]
[null,null,"Hollow walls etc.:",{"$nulls":3},0]
[{"$nulls":6},0]
[null,null,"Brickwork for plastering and bagging shall be of an approved quality similar to that of fair face brickwork and tenderers are to note that sample panels shall be provided for approval by the Principal Agent.",{"$nulls":3},0]
[{"$nulls":6},0]
[null,null,"Face bricks:",{"$nulls":3},0]
[{"$nulls":6},0]
[null,null,"Bricks shall be ordered timeously to obtain uniformity in size and colour.",{"$nulls":3},0]
[{"$nulls":6},0]
[null,null,"Pointing:",{"$nulls":3},0]
[{"$nulls":6},0]
[null,null,"Descriptions of recessed pointing to fair face brickwork and face brickwork shall be deemed to include square recessed, hollow recessed, weathered pointing, etc.",{"$nulls":3},0]
[{"$nulls":6},0]
[null,null,"BRICKWORK IN SUPERSTRUCTURE",{"$nulls":3},0]
[{"$nulls":6},0]
[null,null,"Brickwork of NFX bricks (14 MPa nominal compressive strength) in Class I mortar in:",{"$nulls":3},0]
[{"$nulls":6},0]
[null,null,"Half brick walls.","m²",{"v":10.2,"d":"10.20"}]
[]
[null,null,"One brick walls.","m²",55.42]
[]
[null,null,"2,8mm Galvanised brick reinforcement:"]
[]
[null,null,"75mm Wide reinforcement built in horizontally.","m",{"v":29.987999999999996,"d":"29.99"}]
[]
[null,null,"150mm Wide reinforcement built in horizontally.","m",{"v":162.9348,"d":"162.93"}]
[]
[null,null,"Prestressed fabricated concrete lintels including necessary temporary supports:"]
[]
[null,null,"Galvanised hoop iron cramps, ties, etc.:"]
[]
[]
[null,null,"30 x 1,2mm Hoop iron ties 500mm long  built into brickwork.","No",{"v":16,"d":"16.00"}]
[]
[]
[]
[]
[]
["TOTAL FOR THIS BILL:"]
[]
[null,null,"BILL NO.3 : WATERPROOFING"]
[]
[null,null,"The Tenderer is referred to the relevant clauses in the separate document 'Model Preambles for Trades' (2017 Edition) and the Supplementary Preambles hereunder."]
[]
[null,null,"SUPPLEMENTARY PREAMBLES"]
[]
[null,null,"Waterproofing to roofs shall be laid to even falls to outlets, etc., with necessary ridges, hips and valleys."]
[]
[null,null,"Descriptions of sheet or membrane waterproofing shall be deemed to include labour to turn-ups and turn-downs."]
[]
[null,null,"Guarantee:"]
[]
[null,null,"Waterproofing to roofs, basements, etc. shall be guaranteed watertight for a period of ten years."]
[]
[null,null,"DAMPPROOFING OF WALLS AND FLOORS"]
[]
[null,null,"Gundle Brickgrip DPC 375 damp proof course (SANS 952-1985) type B laid with minimum 150mm overlaps:"]
[]
[null,null,"DPC to walls, cills, etc. ","m²",{"v":46.917,"d":"46.92"}]
[]
[null,null,"DAMP-PROOFING UNDER FLOORS, ETC."]
[]
[null,null,"Superflex acrylic based liquid waterproofing system, laid in accordance to manufacturers instructions:"]
[]
[null,null,"On floors (showers)","m²",{"v":1,"d":"1.00"}]
[]
[null,null,"On brickwalls","m²",9.52]
[]
[null,null,"SEALING STRIPS, JOINT SEALANTS, ETC."]
[]
[null,null,"One part, low modulus polyurethane elastomeric sealant including backing cord, bond breaker, primer, etc., applied in strict accordance with the manufacturer's details and recommendations: (Colour: 114 Anthracite)"]
[]
[null,null,"10mm Wide x 10mm deep in isolation joint between fittings and brickwalls.","m",{"v":42,"d":"42.00"}]
[]
[]
["TOTAL FOR THIS BILL:"]
[]
[]
[null,null,"BILL NO.4 : CARPENTRY AND JOINERY"]
[]
[null,null,"The Tenderer is referred to the relevant clauses in the seperate document 'Model Preambles for Trades' (2017 Edition) and the Supplementary Preambles hereunder."]
[]
[null,null,"SUPPLEMENTARY PREAMBLES"]
[]
[null,null,"Fixing:"]
[]
[null,null,"Items described as 'nailed' shall be deemed to be fixed with hardened steel nails or pins, or to be shot-pinned, to brickwork or concrete."]
[]
[null,null,"Items described as 'plugged' shall be deemed to include screwing to fibre, plastic or metal plugs at not exceeding 500mm centres, and where described as 'bolted', the bolts have been given elsewhere."]
[]
[null,null,"Joinery:"]
[]
[null,null,"Descriptions of frames shall be deemed to include frames, transomes, rails, etc."]
[]
[null,null,"Descriptions of hardwood joinery shall be deemed to include sinking and pelleting heads and nuts of bolts."]
[]
[null,null,"The following timber ceiling boards must be thouroughly checked and spot or knot free."]
[]
[null,null,"DOORS, ETC."]
[]
[null,null,"Flush panel solid core door with 10mm hardwood edges faced with tempered smoothfaced hardboard, suitable for painting and hung to steel or aluminium frames (frames elsewhere measured):"]
[]
[null,null,"40mm Thick Solid door (Type D2) overall size 813 x 1932mm high - Refer to drawing no. 7.101 Rev 02","No",{"v":11,"d":"11.00"}]
[]
[null,null,"Polyurethane foam sealant:"]
[]
[null,null,"20mm Wide x 20mm deep in joints between timber frames and brickwalls","m",{"v":67.60000000000001,"d":"67.60"}]
[]
[]
["TOTAL FOR THIS BILL:"]
[]
[null,null,"BILL NO.5 : CEILINGS PARTITIONS AND ACCESS FLOORING"]
[]
[null,null,"The Tenderer is referred to the relevant clauses in the seperate document 'Model Preambles for Trades' (2017 Edition) and the Supplementary Preambles hereunder"]
[]
[null,null,"SUPPLEMENTARY PREAMBLES"]
[]
[null,null,"Proprietary suspended ceilings:"]
[]
[null,null,"Hangers, suspension grids, lay-in panels, etc. are to be in accordance with the manufacturers' recommendations."]
[]
[null,null,"Electrical light fittings, diffusers, panels etc. are generally lay-in units of the same dimensions as the suspension grid described and allowance must be made in the rates accordingly for their support inclusive of any flexibility in setting out that may be required (ceiling panels have not been deducted and pricing is to take cognisance thereof)."]
[]
[null,null,"Partitions, etc.:"]
[]
[null,null,"Unless otherwise described rates for partitions shall be deemed to include for standard flat section aluminium skirtings on both sides."]
[]
[null,null,"Wall paper and/or paint and varnish finishes are given elsewhere."]
[]
[null,null,"Ceilings:"]
[]
[null,null,"Unless otherwise described ceilings shall be deemed to be horizontal."]
[]
[null,null,"Bulkheads:"]
[]
[null,null,"GypRoc Standard System steel stud partitions with both sides clad with one layer of 12.5mm Rhinoboard fixed with 25mm Rhinoboard sharp point screws at 220mm centres:"]
[]
[null,null,"Bulkheads are defined as those portions of ceilings which are stepped down from the general ceiling level in a particular room or area and which generally occur along the perimeter. Their purpose is either to conceal services or to create architectural features."]
[]
[null,null,"Bulkheads have only been described as such where they conform to the above definition and where the horizontal or vertical dimensions do not exceed 900mm. Where these dimensions are more than 900mm such portions of ceilings have been included in the appropriate general items of ceilings."]
[]
[null,null,"Unless otherwise described bulkheads shall be deemed to be horizontal along the length."]
[]
[null,null,"Steel components:"]
[]
[null,null,"All steel components for ceilings, partitions, etc. are to be galvanised in accordance with SANS 121."]
[]
[null,null,"Proprietary suspended ceilings:"]
[]
[null,null,"Hangers, suspension grids, lay-in panels, etc. are to be in accordance with the manufacturers' recommendations."]
[]
[]
[]
[]
[]
[null,"Amount Carried Forward"]
[null,"Brought forward"]
[]
[null,null,"Electrical light fittings, diffusers, panels etc. are generally lay-in units of the same dimensions as the suspension grid described and allowance must be made in the rates accordingly for their support inclusive of any flexibility in setting out that may be required (ceiling panels have not been deducted and pricing is to take cognisance thereof)."]
[]
[null,null,"SUSPENDED CEILINGS"]
[]
[null,null,"Daiken Excel-Tone mositure resistant laid onto CKM T38/24W exposed tee grid and tee system, including galvanised main tees and cross tees, necessary hangers, grids, corner beads, etc with rhinotape fixed over joints applied as per manufacturers instructions:"]
[]
[null,null,"600 x 600 x 15mm Venus pin perforated ceiling. ","m²",{"v":111.5,"d":"111.50"}]
[]
[null,null,"CAPCO 12mm moistureguard plasterboard tapered edge & T38/35G galvanised covered tee grid system, including galvanised main tees and cross tees, necessary hangers, grids, corner beads, etc with rhinotape fixed over joints and the whole finished with 6mm thick rhinolite gypsum skim plaster applied as per manufacturers instructions:"]
[]
[null,null,"12mm Plasterboard ceiling with joints skimmed.","m²",{"v":107.2,"d":"107.20"}]
[]
[null,null,"Extra over ceiling for forming 1200 x 600mm opening for recessed fluorscent luminaire.","No"]
[]
[null,null,"Cornices, perimeter trims, etc. to suspended ceilings:"]
[]
[null,null,"Donn' or similar approved pre-painted shadow line cornice for flush plastered ceiling, secured to plastered wall, ceiling boarding, including mitres, etc.","m",{"v":383.4,"d":"383.40"}]
[]
[null,null,"PARTITIONS, ETC."]
[]
[null,null,"95mm thick \"CAPCO\" drywall partition system (Type A) - refer to drawing for specification:"]
[]
[null,null,"Partitions 3,4m high with bottom and top tracks plugged.","m",{"v":53.4,"d":"53.40"}]
[]
[null,null,"Extra over partition 3,4m high for vertical abutment.","No",{"v":6,"d":"6.00"}]
[]
[null,null,"Extra over partition 3,4m high for T-intersection.","No",{"v":2,"d":"2.00"}]
[]
[null,null,"Extra over partition 3,4m high for corner.","No",{"v":6,"d":"6.00"}]
[]
[null,null,"Extra over partition 3,4m high for fair end.","No",{"v":2,"d":"2.00"}]
[]
[null,null,"Extra over for forming opening for windows and shopfronts.","No",{"v":22,"d":"22.00"}]
[]
[null,null,"Extra over for forming opening for door size 813 x 2032mm.","No",{"v":13,"d":"13.00"}]
[]
[null,null,"Extra over for forming opening for door size 1600 x 2032mm.","No",{"v":4,"d":"4.00"}]
[]
[null,null,"95mm thick \"CAPCO\" drywall partition system (Type B) - refer to drawing for specification:"]
[]
[null,null,"Partitions 3,4m high with bottom and top tracks plugged.","m",{"v":17.6,"d":"17.60"}]
[]
[null,null,"Extra over partition 3,4m high for vertical abutment.","No",{"v":9,"d":"9.00"}]
[]
[null,null,"Extra over partition 3,4m high for T-intersection.","No",{"v":4,"d":"4.00"}]
[]
[null,null,"Extra over partition 3,4m high for corner.","No",{"v":2,"d":"2.00"}]
[]
[null,"Amount Carried Forward"]
[null,"Brought forward"]
[]
[null,null,"Extra over partition 3,4m high for fair end.","No",{"v":1,"d":"1.00"}]
[]
[null,null,"120mm thick \"CAPCO\" drywall partition system (Type B) - refer to drawing for specification:"]
[]
[null,null,"Partitions 6,2m high with bottom and top tracks plugged.","m",{"v":33.6,"d":"33.60"}]
[]
[null,null,"Extra over partition 6,2m high for vertical abutment.","No",{"v":5,"d":"5.00"}]
[]
[null,null,"Extra over partition 6,2m high for T-intersection.","No",{"v":2,"d":"2.00"}]
[]
[null,null,"Extra over partition 6,2m high for corner.","No",{"v":4,"d":"4.00"}]
[]
[null,null,"Extra over partition 6,2m high for fair end.","No",{"v":2,"d":"2.00"}]
[]
[null,null,"Extra over for forming opening for windows and shopfronts.","No",{"v":8,"d":"8.00"}]
[]
[null,null,"Extra over for forming opening for door size 813 x 2032mm.","No",{"v":2,"d":"2.00"}]
[]
[null,null,"Extra over for forming opening for door size 1600 x 2032mm.","No",{"v":2,"d":"2.00"}]
[]
["TOTAL FOR THIS BILL:"]
[]
[null,null,"BILL NO.6 : FLOOR COVERINGS"]
[]
[null,null,"FLOOR COVERINGS"]
[]
[null,null,"Polyflor Static dissipative vinyl flooring (Pencil Lead 8606)","m²",{"v":115.3,"d":"115.30"}]
[]
[null,null,"Polyflor Electrostatic conductive vinyl flooring (OhMega EC Frosty)","m²",{"v":240.6,"d":"240.60"}]
[]
[null,null,"Epoxy floor system (AB.E cote 400 Hi-build)","m²",{"v":68.6,"d":"68.60"}]
[]
[null,null,"SKIRTINGS, NOSINGS, ETC."]
[]
[null,null,"Skirtings, nosings, etc.:","m",{"v":383.4,"d":"383.40"}]
[]
[null,null,"POLISH, SEALERS, ETC."]
[]
[null,null,"Two coats wax polish on vinyl flooring","m²",{"v":355.9,"d":"355.90"}]
[]
[]
["TOTAL FOR THIS BILL:"]
[]
[null,null,"BILL NO.7 : IRONMONGERY"]
[]
[]
[null,null,"The Tenderer is referred to the relevant Clauses in the separate document 'Model Preambles for Trades' (2017 Edition)."]
[]
[null,null,"IRONMONGERY"]
[]
[null,null,"Allow the Prime Cost Amount of R50 000.00 for the supply and delivery of Ironmongery and Accessories ","Item",{"v":1,"d":"1.00"},{"v":50000,"d":"R50,000.00"},{"$f":"E466*F466","v":{"v":50000,"d":"R50,000.00"}}]
[]
[null,null,"Allow for profit on above if required.","Item",{"v":1,"d":"1.00"}]
[]
[null,null,"Labour Only - Fixing Ironmongery:"]
[]
[null,null,"LOCKS, ETC."]
[]
[null,null,"Two-lever lockset, backplates and handles.","No"]
[]
[null,null,"Cylinder lockset, backplates and handles.","No"]
[]
[null,null,"SUNDRIES"]
[]
[null,null,"Rubber door stop.","No"]
[]
[null,null,"Wall buffer.","No"]
[]
[null,null,"Grab rails, etc.","No"]
[]
[null,null,"Push plates.","No"]
[]
[null,null,"Kick plates.","No"]
[]
[null,null,"Door closers.","No"]
[]
[null,null,"Floor springs.","No"]
[]
[null,null,"Toilet roll holder.","No"]
[]
[null,null,"Towel rail.","No"]
[]
[null,null,"Robe hook.","No"]
[]
[null,null,"Paper towel dispenser.","No"]
[]
[null,null,"Soap dispenser.","No"]
[]
[null,null,"Electric hand drier.","No"]
[]
[null,null,"End of Labour only items."]
[]
[null,null,"BUDGETARY ALLOWANCE"]
[]
[null,null,"Allow a Budgetary Allowance of R20 000.00 (Twenty Thousand Rand) for Signage to be used as directed by the Principal Agent and to be deducted in whole or in part if not required.","Item",{"v":1,"d":"1.00"},{"v":20000,"d":"R20,000.00"},{"$f":"E510*F510","v":{"v":20000,"d":"R20,000.00"}}]
[]
[]
["TOTAL FOR THIS BILL:"]
[null,null,"BILL NO.8: METALWORK"]
[]
[null,null,"The Tenderer is referred to the relevant Clauses in theseparate document 'Model Preambles for Trades' (2017 Edition) and to the Supplementary Preambles which are incorporated hereunder."]
[]
[null,null,"SUPPLEMENTARY PREAMBLES"]
[]
[null,null,"Descriptions:"]
[]
[null,null,"Descriptions of bolts shall be deemed to include nuts and washers."]
[]
[null,null,"Metalwork described as holed for bolt(s) shall be deemed to exclude the bolts unless otherwise described."]
[]
[null,null,"All surfaces of steelwork must be given one coat of approved zinc chromate primer before leaving the works of the manufacturer."]
[]
[null,null,"Descriptions of expansion anchors and bolts and chemical anchors and bolts shall be deemed to include nuts, washers and mortices in brickwork or concrete."]
[]
[null,null,"ALUMINIUM WINDOWS (Refer to drawing no, 7.101 Rev 2):"]
[]
[null,null,"Powder coated casement window units as per \"?\" system, complete with subframes, ironmongery, glass, sealing, etc. and fixing to brickwork or concrete (Refer to drawing no, 7.101 Rev 2):"]
[]
[null,null,"1111 x 2100mm High (W01)","No",{"v":1,"d":"1.00"}]
[]
[null,null,"942 x 2100mm High (W02)","No",{"v":3,"d":"3.00"}]
[]
[null,null,"1074 x 1050mm High (W03)","No",{"v":4,"d":"4.00"}]
[]
[null,null,"2000 x 1000mm High (W04)","No",{"v":1,"d":"1.00"}]
[]
[null,null,"1600 x 900mm High (W05)","No",{"v":1,"d":"1.00"}]
[]
[null,null,"2540 x 1000mm High (W06)","No",{"v":1,"d":"1.00"}]
[]
[null,null,"2767 x 1067mm High (W07)","No",{"v":1,"d":"1.00"}]
[]
[null,null,"2780 x 1067mm High (W08)","No",{"v":1,"d":"1.00"}]
[]
[null,null,"4670 x 1067mm High (W09)","No",{"v":1,"d":"1.00"}]
[]
[null,null,"1660 x 2100mm High (W10)","No",{"v":1,"d":"1.00"}]
[]
[null,null,"ALUMINIUM DOORS (Refer to drawing no, 7.101 Rev 2):"]
[]
[null,null,"900 x 2100mm High (D01)","No",{"v":2,"d":"2.00"}]
[]
[null,null,"1500 x 2100mm High (D03)","No",{"v":2,"d":"2.00"}]
[]
[null,null,"1450 x 2100mm High (D04)","No",{"v":2,"d":"2.00"}]
[]
[null,null,"ALUMINIUM DOOR FRAMES (Refer to drawing no, 7.101 Rev 2):"]
[]
[null,null,"Aluminium single rebate door frames with powder coated finish, including closing cavities, building into brickwork, between brickwork, structural steelwork, concrete, etc., and supplying and building in of temporary templates to suit door sizes:"]
[]
[null,null,"900 x 2100mm High","No",{"v":11,"d":"11.00"}]
[]
[null,"Amount Carried Forward"]
[null,"Brought forward"]
[null,null,"ALUMINIUM SHOPFRONTS (Refer to drawing no, 7.101 Rev 2):"]
[]
[null,null,"Powder coated shopfronts as per Nuklip system complete with subframes, ironmongery, glass, sealing, etc and fixing to brickwork or concrete:"]
[]
[null,null,"900 x 2100mm High (SD01)","No",{"v":2,"d":"2.00"}]
[]
[null,null,"1700 x 2100mm High (SD02)","No",{"v":1,"d":"1.00"}]
[]
[null,null,"2500 x 2100mm High (SD03)","No",{"v":2,"d":"2.00"}]
[]
[null,null,"2000 x 2100mm High (SD04)","No",{"v":1,"d":"1.00"}]
[]
[null,null,"4087 x 2100mm High (SD04)","No",{"v":1,"d":"1.00"}]
[]
[]
["TOTAL FOR THIS BILL:"]
[]
[null,null,"BILL NO.9: PLASTERING"]
[]
[null,null,"SCREEDS"]
[]
[null,null,"3:1 Cement plaster screeds on concrete:"]
[]
[null,null,"30mm Thick on floors.","m²",{"v":9.3,"d":"9.30"}]
[]
[null,null,"Self levelling screed.","m²",{"v":424.5,"d":"424.50"}]
[]
[null,null,"INTERNAL PLASTER"]
[]
[null,null,"Cement plaster rendering coat with gypsum skim plaster finishing coat, on brickwork:"]
[]
[null,null,"On walls.","m²",{"v":752.4200000000001,"d":"752.42"}]
[]
[null,null,"On drywalls.","m²",899.44]
[]
[null,null,"Bill Total"]
[]
[null,null,"BILL NO.10: PLUMBING AND DRAINAGE"]
[]
[null,null,"The Tenderer is referred to the relevant clauses in the seperate document 'Model Preambles for Trades' (2017 Edition) and the Supplementary Preambles hereunder."]
[]
[null,null,"SUPPLEMENTARY PREAMBLES"]
[]
[null,null,"Supply, delivery to site and installation of  SANS 21003 Multi-Layer Pipe. Piping to be chased in walls and secured with a light wire mesh. All Terminal fitting to include an angle valve:"]
[]
[null,null,"SANITARY FITTINGS (Refer to sanitary schedule sheets 1 & 2):"]
[]
[null,null,"Wash Hand Basins:"]
[]
[null,null,"Geberit Selnova square wash hand basin (complete system).","No",{"v":2,"d":"2.00"}]
[]
[null,null,"WC:"]
[]
[null,null,"Geberit Kombifix toilets (complete system).","No",{"v":3,"d":"3.00"}]
[]
[null,null,"Urinals:"]
[]
[null,null,"Geberit Selnova urinal (complete system).","No",{"v":1,"d":"1.00"}]
[]
[null,null,"SINKS"]
[]
[null,null,"Franke Quinline QLX611 stainless steel kitchen sink and Cobra heavy pattern medical elbow action, square-type pillar tap (complete system).","No",{"v":1,"d":"1.00"}]
[]
[null,null,"Franke Model ET102 Double fabricated economy type washtrough and Cobra heavy pattern medical elbow action, square-type pillar tap (1030 x 430 x 348mm deep) (complete system).","No",{"v":1,"d":"1.00"}]
[]
[null,null,"Franke wallmounted wash hand basin (535 x 120 x 150mm deep) including brackets and Cobra heavy pattern medical elbow action, square-type pillar tap","No",{"v":4,"d":"4.00"}]
[]
[null,null,"Franke model CH slop hopper 540 x 540mm stainless steel, 1,2mm thick with a 100mm high integral splash back to the rear and both sides and Cobra heavy pattern medical elbow action, square-type pillar tap (complete system).","No",{"v":1,"d":"1.00"}]
[null,"Amount Carried Forward"]
[null,"Brought forward"]
[]
[null,null,"Polypropylene laboratory sink 558 x 355 x 240mm and bowl size 503 x 300 x 238mm including waste fittings and Cobra heavy pattern medical elbow action, square-type pillar tap (complete system)","No",{"v":5,"d":"5.00"}]
[]
[null,null,"Tivoli Artic shower mixer, 800 x 700mm shower channel and trap ","No",{"v":3,"d":"3.00"}]
[]
[null,null,"Straight Pipe Lengths:"]
[]
[null,null,"Ø16 mm.","m"]
[]
[null,null,"Ø20 mm.","m"]
[]
[null,null,"Ø22 mm.","m"]
[]
[null,null,"Ø26 mm.","m"]
[]
[null,null,"Tees and reducing tees  f/f/f:"]
[]
[null,null,"Ø26 mm - Ø16 mm.","No"]
[]
[null,null,"Elbows and reducing elbows m/m, m/f or f/f:"]
[]
[null,null,"Ø16 mm.","No"]
[]
[null,null,"Ø20 mm.","No"]
[]
[null,null,"Ø26 mm.","No"]
[]
[null,null,"Ø26 mm - Ø16 mm.","No"]
[]
[null,null,"Pipe Couplings:"]
[]
[null,null,"Ø16 mm.","No"]
[]
[null,null,"Ø20 mm.","No"]
[]
[null,null,"Ø26 mm.","No"]
[]
[null,null,"Ø26 mm - Ø16 mm.","No"]
[]
[null,null,"10mm Angle valves complete with wall brackets where required.","No"]
[]
[null,null,"Supply, delivery to site and installation of  Copper Class 2 piping. Piping to be chased in walls and secured with a light wire mesh. All Terminal fitting to include an angle valve."]
[]
[null,null,"Straight Pipe Lengths:"]
[]
[null,null,"Ø15 mm.","m"]
[]
[null,null,"Ø22 mm.","m"]
[]
[null,null,"Ø28 mm.","m"]
[]
[null,null,"Ø35 mm.","m"]
[]
[null,null,"Ø50 mm.","m"]
[]
[]
[]
[]
[]
[]
[null,"Amount Carried Forward"]
[null,"Brought forward"]
[null,null,"Steel full-way gate valve, cast brass. Includes: female to female connection end, non-rising spindle and guided wedge, BSP parallel female threads, tested to 2400kPa, and hydraulic working pressure up to 1600 kPa. SANS 776 CLASS 16, DZR brass:"]
[]
[null,null,"Ø15 mm.","No"]
[]
[null,null,"Ø22 mm.","No"]
[]
[null,null,"Ø28 mm.","No"]
[]
[null,null,"Ø35 mm.","No"]
[]
[null,null,"Ø50 mm.","No"]
[]
[null,null,"Industrial level ball valves, BSP parallel female threads, tested to 2400kPa, and hydraulic working pressure up to 1600 kPa. Kwikot or equally approved:"]
[]
[null,null,"Ø15 mm.","No"]
[]
[null,null,"Ø22 mm.","No"]
[]
[null,null,"Ø28 mm.","No"]
[]
[null,null,"Ø35 mm.","No"]
[]
[null,null,"Ø50 mm.","No"]
[]
[null,null,"Elbows and reducing elbows m/m, m/f or f/f [copper]:"]
[]
[null,null,"Ø15 mm.","No"]
[]
[null,null,"Ø22 mm.","No"]
[]
[null,null,"Ø28 mm.","No"]
[]
[null,null,"Ø35 mm.","No"]
[]
[null,null,"Ø50 mm.","No"]
[]
[null,null,"Tees and reducing tees  f/f/f [copper]:"]
[]
[null,null,"Ø50 mm - Ø35 mm.","No"]
[]
[null,null,"Ø35 mm - Ø28 mm.","No"]
[]
[null,null,"Ø50 mm.","No"]
[]
[null,null,"Ø35 mm.","No"]
[]
[null,null,"Ø28 mm.","No"]
[]
[null,null,"Waste Pipes - Sanitary Fittings:"]
[]
[null,null,"110mm PVC Pipe.","m"]
[]
[null,null,"Extra Over PVC fittings:"]
[]
[null,null,"110 mm Reducer.","No"]
[]
[null,null,"50mm bend.","No"]
[]
[]
[null,"Amount Carried Forward"]
[null,"Brought forward"]
[null,null,"40mm bend.","No"]
[]
[null,null,"110mm bend.","No"]
[]
[null,null,"50mm junction.","No"]
[]
[null,null,"40mm junction.","No"]
[]
[null,null,"110mm junction.","No"]
[]
[null,null,"110mm reduction junction.","No"]
[]
[null,null,"110mm pan connector.","No"]
[]
[null,null,"40mm access bend.","No"]
[]
[null,null,"50mm access bend.","No"]
[]
[null,null,"40mm access junction.","No"]
[]
[null,null,"50mm access junction.","No"]
[]
[null,null,"100mm access reducing junction.","No"]
[]
[null,null,"50mm vent pipe.","No"]
[]
[null,null,"110mm stub stack.","No"]
[]
[]
["TOTAL FOR THIS BILL:"]
[]
[]
[null,null,"BILL NO.10 : ELECTRICAL"]
[]
[null,null,"The Tenderer is referred to the relevant clauses in the seperate document 'Model Preambles for Trades' (2017 Edition) and the Supplementary Preambles hereunder."]
[]
[null,null,"ELECTRICAL SUPPLY"]
[]
[null,null,"Supply and Installation of complete components for full working order and operation:"]
[]
[null,null,"Modification to existing Distribution Boards or Supply Panels for cable entry and alterations of distribution board metal work. To be determined by contractor prior to tendering.","Item"]
[]
[null,null,"Investigation into which services are being fed by the existing board(s) in order to ensure the distribution board  have sufficient capacity to serve the existing and the additional electrical equipment. Also to ascertain if the installation is done in accordance with SANS 10142and other relevant standards including load balancing.","Item"]
[]
[null,null,"Additional cost, if necessary,and for the supply and install of necessary additional switchgear to serve existing electrical equipment as investigated in item 2.6. and also provide supply to the additional equipment.","Item"]
[]
[null,null,"The supply, installation and commissioning in a pre-fitted distribution board of the following equipment inline with the existing distribution boards:"]
[]
[null,null,"5-25 A SP MCB - 5kA.","No"]
[]
[null,null,"25-60 A DP MCB - 5kA.","No"]
[]
[null,null,"10-60 A TP MCB - 5kA.","No"]
[]
[null,null,"63A SP earth leakage relay - 5kA CB Type.","No"]
[]
[null,null,"20A DP NO/NC Contactor.","No"]
[]
[null,null,"20A 4 Pole NO/NC Contactor.","No"]
[]
[null,null,"20 A DP isolator.","No"]
[]
[null,null,"30 A DP isolator.","No"]
[]
[null,null,"20 A TP isolator.","No"]
[]
[null,null,"30 A TP isolator.","No"]
[]
[null,null,"Digital timer .","No"]
[]
[null,null,"CONDUCTORS, TRAYS, DUCTS"]
[]
[null,null,"Wiring Duct - Lay-in Wiring Reticulation: Galvanised steel trunking complete with all accessories, cover plates, and supports as indicated on drawings, suspended from slab/purlins & trusses, excluding conduit work and wiring, and with pre-punched openings for power outlets to specification:"]
[]
[null,null,"P8000 (76 x 76mm).","m"]
[]
[null,null,"P8000 Splice.","No"]
[null,"Amount Carried Forward"]
[null,"Brought forward"]
[]
[null,null,"P8000 End cap.","No"]
[]
[null,null,"P8000 Horizontal elbow.","No"]
[]
[null,null,"P8000 Internal / external elbow.","No"]
[]
[null,null,"CONDUITS, BOXES, ETC."]
[]
[null,null,"Galvanised conduit: The supply and installation of Galvanised conduit cast in ceilings and voids on surface to include cutting, bending, terminations, fixing materials etc.:"]
[]
[null,null,"20mm.","m"]
[]
[null,null,"25mm.","m"]
[]
[null,null,"Round Conduit Drawbox: The supply and installation of drawboxes including locknuts, bushes, cover plates, fixing materials when required:"]
[]
[null,null,"Galvanised steel round, deep back or side entry for 20mm dia conduit cast in concrete or roof space, average for 1,2,3 and 4 ways Supply.","No"]
[]
[null,null,"Switch Boxes: switch boxes for 20mm dia conduit built into brickwork, cast into concrete or surface installed (as determined by the Electrical Engineer):"]
[]
[null,null,"100mm x 50mm x 50mm Powder coated Galvanised Steel box.","No"]
[]
[null,null,"100mm x 100mm x 50mm  Powder coated Galvanised Steel box.","No"]
[]
[null,null,"LUMINAIRES"]
[]
[null,null,"Supply, take delivery, unpack, store, fix, test fittings, including installation, materials, connections, LED fluorescent lamps. All fluorescent lamps shall have a colour rendring of 4000K:"]
[]
[null,null,"2 x 22W LED Vapour proof surface mounted fluorescent fitting, IP65 rated col. 4000K with emergency battery backup 50% light output.","No"]
[]
[null,null,"POWER"]
[]
[null,null,"Conductors: The supply and installation of PVC insulated single core stranded copper conductors drawn into conduit, wiring channel, trunking or power skirting:"]
[]
[null,null,"2.5mm² PVC Red, Black wire.","m"]
[]
[null,null,"2,5mm² PVC green/yellow earth wire.","m"]
[]
[null,null,"4mm² PVC Red, white, blue, black","m"]
[]
[null,null,"4mm² PVC green/yellow earth wire.","m"]
[]
[null,null,"Switched Socket Outlets: Approved  single phase standard switched socket outlet as specified, including installation and connection of the socket and switch assembly and white steel  cover plate including box:"]
[]
[null,null,"16A Normal Single Switched Socket Outlet with White Cover Plate (wall mounted).","No"]
[]
[null,null,"16A Normal Double Switched Socket Outlet with White Cover Plate ( wall mounted).","No"]
[null,"Amount Carried Forward"]
[null,"Brought forward"]
[null,null,"60A Single phase  Stove isolator.","No"]
[]
[null,null,"Isolators: Approved  Isolators as specified, including supply, installation and connection of the isolator and cover plate, including box:"]
[]
[null,null,"20A D.P. isolator in box complete.","No"]
[]
[null,null,"32A D.P. isolator in box complete - flush.","No"]
[]
[null,null,"20A T.P. isolator in box complete - flush.","No"]
[]
[null,null,"Light Switch: Approved Light switches as specified, including supply, installation and connection of the switches and cover plate, including box:"]
[]
[null,null,"1 Lever 1 Way.","No"]
[]
[null,null,"Single Load Occupancy Sensor as detailed in the Specification.","No"]
[]
[null,null,"MISCELLANEOUS AND SUNDRY"]
[]
[null,null,"Building Earthing:"]
[]
[null,null,"Test and rectify  the earthing and bonding of the existing installation to comply with SANS 10142-1. Bonding includes bonding of all reinforced steel in columns and steelwork with sufficient termination in earth.","Item"]
[]
[null,null,"Commissioning & Tests:"]
[]
[null,null,"Test and commission the complete installation  and balance load as practical as possible  over three phases, as necessary. Provide Certificate of Compliance for the entire electrical works.","Item"]
[]
[null,null,"Operational and Maintenance Training & Manuals including As Built Drawings in CAD format:"]
[]
[null,null,"Compilation of detail manuals, as-built drawings and documentation as per the project specification and to the satisfaction of the Engineer.","Item"]
[]
[null,null,"Existing Installation:"]
[]
[null,null,"Removal from site all existing unused/replaced electrical installation and correct disposal thereof.","Item"]
[]
[null,null,"Dayworks -  The rates for labour in Dayworks are to be applied to the hours worked and they are to include for the cost of labour, overheads, profit, all levies, bonuses and leave pay. Dayworks are to be employed only on written instructions from the Engineer:"]
[]
[null,null,"Electrician.","Hrs",{"$nulls":3},"RATE ONLY"]
[]
[null,null,"Labourer (skilled).","Hrs",{"$nulls":3},"RATE ONLY"]
[]
[null,null,"Labourer (unskilled).","Hrs",{"$nulls":3},"RATE ONLY"]
[]
[null,null,"BUDGETARY ALLOWANCE"]
[]
[null,null,"Allow a Budgetary Allowance of R35 000.00 (Thirty Five Thousand Rand) for Electrical Work to be used as directed by the Principal Agent and to be deducted in whole or in part if not required.","Item"]
[]
[]
[]
[]
[null,"Amount Carried Forward"]
[null,"Brought forward"]
[]
[null,null,"Mark-up: The Contractor shall indicated the percentage mark-up for all materials and equipment for any additional items not included in this schedule of materials.  An Items may be classified per single item or per group of items requested and shall be at the Engineer discretion:"]
[]
[null,null,"Item value < R20.","%",{"$nulls":3},"RATE ONLY"]
[]
[null,null,"Item value between R20 - R100.","%",{"$nulls":3},"RATE ONLY"]
[]
[null,null,"Item value between R100 - R1000.","%",{"$nulls":3},"RATE ONLY"]
[]
[null,null,"Item value between R1000 - R5000.","%",{"$nulls":3},"RATE ONLY"]
[]
[null,null,"Item value between R5000 - R10000.","%",{"$nulls":3},"RATE ONLY"]
[]
[null,null,"Item value between R10000 - R25000.","%",{"$nulls":3},"RATE ONLY"]
[]
[null,null,"Item value between R25000 - R50000.","%",{"$nulls":3},"RATE ONLY"]
[]
[null,null,"Item value  >R50 000.","%",{"$nulls":3},"RATE ONLY"]
[]
[]
["TOTAL FOR THIS BILL:"]
[]
[null,null,"BILL NO.11 : MECHANICAL"]
[]
[null,null,"The Tenderer is referred to the relevant clauses in the seperate document 'Model Preambles for Trades' (2017 Edition) and the Supplementary Preambles hereunder."]
[]
[null,null,"SUPPLEMENTARY PREAMBLES"]
[]
[null,null,"The ventilation and extract systems are to be installed by a competent contractor all generally as shown on the drawings and as specified.  All electrical connections are to be included. Electrical points to be supplied with 1,5m from the extract fans. Motion sensors are to be utilised as installed by the electrical contractor and connected/switched as indicated on the drawings."]
[]
[null,null,"EXTRACT FANS"]
[]
[null,null,"HCFB 2-315 Wall Plate Mounted Fan duty 2,4m3/s @ 150Pa Static Press 1~220-240V.","No"]
[]
[null,null,"CFP 350/4-1; Wall plate mounted 0,4m3/s @150Pa Static Press 1~220-240V.","No"]
[]
[null,null,"COOKER HOODS"]
[]
[null,null,"Defy Slimline Cooker hood DCH 290; 155 x 600 x 500 mm c/w lights and Aluminium filters.","No"]
[]
[null,null,"LOUVRES AND WEATHER COWLS"]
[]
[null,null,"400 H x 400 W Galvanised weather cowl c/w SS insect mesh screen.","No"]
[]
[null,null,"500W x 350H natural anodised AGS non-vision door grilles.","No"]
[]
[null,null,"RECTANGULAR DUCT WORK"]
[]
[null,null,"Unless otherwise specified all sheet metal ductwork shall be supplied and installed complete with all the necessary galvanised iron rods, hangers and angle supports etc."]
[]
[null,null,"200 x 200.","m"]
[]
[null,null,"150mm dia flexible duct.","m"]
[]
[null,null,"150mm Plastic Air Valves with clips – C.","No"]
[]
[null,null,"Allowance for duct modifications made on site.","Item"]
[]
[null,null,"Allowance for servicing the existing extract fan - 4th Floor ablution.","Item"]
[]
[null,null,"Allowance for connections to the motion sensors.","Item"]
[]
[null,null,"TESTING AND COMMISSIONING"]
[]
[null,null,"Testing and commissioning by the AC contractor.","Item"]
[]
[null,null,"OPERATION AND MAINTENANCE MANUALS"]
[]
[null,null,"Submit Operation & Maintenance Manuals (hard copies) approval and carry out required changes for approval by engineer, complete with testing and commissioning records.","Sets"]
[]
[]
["TOTAL FOR THIS BILL:"]
[null,null,"BILL NO.12 : FIRE PROTECTION"]
[]
[null,null,"The Tenderer is referred to the relevant clauses in the seperate document 'Model Preambles for Trades' (2017 Edition) and the Supplementary Preambles hereunder."]
[]
[null,null,"PRELIMINARIES AND GENERAL"]
[]
[null,null,"One year SLA (12 months from PC being achieved).","Item"]
[]
[null,null,"Health & Safety File.","Item"]
[]
[null,null,"System Commissioning & Training.","Item"]
[]
[null,null,"Preliminary & General + ( Any other item not listed above i.e access equipment etc.).","Item"]
[]
[null,null,"Any additional items required to complete project (please send cover page with list of these items).","Item"]
[]
[null,null,"FIRE PROTECTION, SMOKE DETECTION, ETC."]
[]
[null,null,"3rd, 4th, 5th and 6th Ablutions:"]
[]
[null,null,"Smoke Detector (equipment to match site exisitng equipment).","No"]
[]
[null,null,"Sounder / strobe.","No"]
[]
[null,null,"PH30 Cabling.","m"]
[]
[null,null,"PVC Conduit for exposed route where required(all cabling above ceiling don’t need conduits).","m"]
[]
[null,null,"Connect into existing loop.","No"]
[]
[null,null,"3rd, 4th, 5th and 6th Kitchens:"]
[]
[null,null,"Heat Detector (equipment to match site exisitng equipment).","No"]
[]
[null,null,"PH30 Cabling.","m"]
[]
[null,null,"PVC Conduit for exposed route where required (all cabling above ceiling don’t need conduits).","m"]
[]
[null,null,"5Kg CO2.","No"]
[]
[null,null,"Fire Blanket.","No"]
[]
[null,null,"Fire Signage F13.","No"]
[]
[null,null,"Fire Signage F34.","No"]
[]
[null,null,"Green break glass units as per Engineers specification.","No"]
[]
[null,null,"BUDGETARY ALLOWANCE"]
[]
[null,null,"Allow a Budgetary Allowance of R85 000.00 (Eighty Five Thousand Rand) for Fire Sealing and Staircase Ventilation to be used as directed by the Principal Agent and to be deducted in whole or in part if not required.","Item"]
[]
[null,null,"Allow a Budgetary Allowance of R25 000.00 (Twenty Five Thousand Rand) for Fire Rationale to be used as directed by the Principal Agent and to be deducted in whole or in part if not required.","Item"]
["TOTAL FOR THIS BILL:"]
[]
[]
[]
[null,null,"BILL NO.13 : GLAZING"]
[]
[null,null,"The Tenderer is referred to the relevant clauses in the seperate document 'Model Preambles for Trades' (2017 Edition) and the Supplementary Preambles hereunder."]
[]
[null,null,"TOPS, SHELVES, DOORS, MIRRORS, ETC."]
[]
[null,null,"6mm Thick silvered float glass copper backed mirrors with polished edges, 4x drilled for fixing with cp dome capped mirror screws above and centred on whb in brickwork or concrete:"]
[]
[null,null,"Mirror 500x800mm high.","No"]
[]
[]
["TOTAL FOR THIS BILL:"]
[]
[]
[]
[null,null,"BILL NO.14 : PLASTERING"]
[]
[null,null,"The Tenderer is referred to the relevant clauses in the seperate document 'Model Preambles for Trades' (2017 Edition) and the Supplementary Preambles hereunder."]
[]
[null,null,"SCREEDS"]
[]
[null,null,"Cement plaster screeds wood floated for tiles, on concrete:"]
[]
[null,null,"35mm Thick on floors and landings.","m²"]
[]
[null,null,"INTERNAL PLASTER"]
[]
[null,null,"One coat cement plaster (5:1)  with woodfloated finish on brickwork or concrete to receive wall tiles fixed with adhesive (tiles and adhesive elsewhere) on:"]
[]
[null,null,"On walls.","m²"]
[]
[null,null,"On drywalls.","m²"]
[]
[null,null,"On narrow widths.","m²"]
[]
[]
["TOTAL FOR THIS BILL:"]
[]
[null,null,"BILL NO.11 : PAINTWORK"]
[]
[null,null,"The Tenderer is referred to the relevant Clauses in the separate document 'Model Preambles for Trades' (2017 Edition) and to the Supplementary Preambles hereunder."]
[]
[null,null,"SUPPLEMENTARY PREAMBLES"]
[]
[null,null,"PREPARATORY WORK TO EXISTING WORK:"]
[]
[null,null,"Previously painted plastered surfaces. Surfaces shall be thoroughly washed down and allowed to dry completely before any paint is applied. Blistered or peeling paint shall be completely removed and cracks shall be opened, filled with a suitable filler and finished smooth."]
[]
[null,null,"Previously painted metal surfaces. Surfaces shall be thoroughly rubbed and cleaned down. Blistered or peeling paint shall be completely removed down to bare metal."]
[]
[null,null,"Previously painted wood surfaces. Surfaces shall be thoroughly cleaned down. Blistered or peeling paint shall be completely removed and cracks and crevices shall be primed, filled with suitable filler and finished smooth."]
[]
[null,null,"Paint Specifications.  All painting shall be done in accordance with finishes specifications unless otherwise described."]
[]
[null,null,"Colours:"]
[]
[null,null,"In the event of the colour scheme for the project not being available when required for the preparation of quantities, it is recommended that either all paintwork be described as being in the White colour group or that ceilings be described as being in the White colour group and the balance being in the Pastel colour group and that provision be made for other colour groups by way of extra over items marked Provisional as provided for in the measuring system (See measurement rule No. 5 under item 2: Colours). The following items are examples of such extra over items:"]
[]
[null,null,"Extra over for paintwork on components (ceilings?) in the White colour group for paintwork in the Pastel colour group (Provisional)"]
[]
[null,null,"Extra over for paintwork on components in the Pastel colour group for paintwork in the Deep colour group (Provisional)"]
[]
[null,null,"Unless otherwise described paintwork on ceilings shall be deemed to be in the White colour group and paintwork on all other components shall be deemed to be in the Pastel colour group in accordance with the Natural Colour System (NCS) adopted by the SA National Standards."]
[]
[null,null,"ON INTERNAL PLASTERED SURFACES"]
[]
[null,null,"Prepare surfaces and remove all loose material. Fill defects with Polycell mendall 90 or Polyfilla Exterior and apply one coat Plascon Plaster Primer and two coats Plascon Teflon based Wall & All (Colour: Papyrus), all in accordance with the manufacturers specifications:"]
[]
[null,null,"Drywalls.","m²",null,{"v":95,"d":"R95.00"}]
[]
[null,null,"Prepare surfaces and remove all loose material. Fill defects with Polycell Mendall or Polyfilla Exterior Prepare, apply one coat Plascon Plaster Primer (UC56) and 2 coats Plascon Kitchens and Bathrooms Paint Matt TKM1000 (Colour - White), all in accordance with the manufacturers specifications:"]
[]
[null,null,"On plastered walls.","m²",null,{"v":95,"d":"R95.00"}]
[null,"Amount Carried Forward"]
[null,"Brought forward"]
[null,null,"On plastered walls.","m²",null,{"v":95,"d":"R95.00"}]
[]
[null,null,"Prepare surfaces and remove all loose material. Fill defects with Polycell Mendall or Polyfilla Exterior and apply one coat Plascon Plaster Primer and two coats Plascon White PVA, all in accordance with the manufacturers specifications:"]
[]
[null,null,"On soffits of slabs.","m²"]
[]
[null,null,"PAINTWORK TO NEW WORK"]
[]
[null,null,"ON FLOATED PLASTER"]
[]
[null,null,"Prepare, apply PVA Plascon Paint, all in accordance with the manufacturers specifications:"]
[]
[null,null,"On drywalls.","m²",899.44]
[]
[null,null,"On narrow widths.","m²",{"v":89.94400000000002,"d":"89.94"}]
[]
[null,null,"Prepare, apply PVA Plascon Paint, all in accordance with the manufacturers specifications:"]
[]
[null,null,"On plastered walls.","m²",{"v":485.72400000000005,"d":"485.72"}]
[]
[null,null,"On narrow widths.","m²",{"v":48.57240000000001,"d":"48.57"}]
[]
[null,null,"Prepare, apply Epoxy abe cote 337, all in accordance with the manufacturers specifications:"]
[]
[null,null,"On drywalls.","m²",119.68]
[]
[null,null,"On plastered walls.","m²",{"v":266.696,"d":"266.70"}]
[]
[null,null,"On narrow widths.","m²",{"v":38.637600000000006,"d":"38.64"}]
[]
[null,null,"ON WOOD SURFACES"]
[]
[null,null,"Stop, sand down, clean and prepare wood surfaces and apply one coat pink wood primer and two coats Plascon Velvaglo Polyurethane Velvet Enamel. Colour - Battleship Grey G13, all in accordance with the manufacturers specifications:"]
[]
[null,null,"On doors.","m²",{"v":52.455,"d":"52.46"}]
[]
[]
[]
["TOTAL FOR THIS BILL:"]
[]
[]
[null,null,"BILL NO.12 : PROVISIONAL SUMS"]
[]
[null,null,"The Tenderer is referred to the relevant Clauses in the separate document 'Model Preambles for Trades' (2017 Edition)."]
[]
[null,null,"All provisional sums are nett and make provision for material, fittings and installation by specialist firms. Provisional sums do not include builder's discount but tenderers may allow for profit opposite the appropriate item."]
[]
[null,null,"In cases of the tenderer allowing for profit, then the amount will be adjusted in direct proportion to the final value executed by the specialist firms."]
[]
[null,null,"As part of Attendance, the Tenderer is to co-ordinate and take delivery of goods / materials to ensure necessary placement and installation."]
[]
[null,null,"LOOSE FURNITURE AND FITTINGS."]
[]
[null,null,"Allow the sum of R350 000,00 (Three Hundred and Fifty Thousand Rand) for Loose Furniture and Fittings.","Item",{"v":1,"d":"1.00"},{"v":350000,"d":"R350,000.00"},{"$f":"E1200*F1200","v":{"v":350000,"d":"R350,000.00"}}]
[]
[null,null,"Profit on above item.","Item",{"v":1,"d":"1.00"}]
[]
[null,null,"Attendance on ditto.","Item",{"v":1,"d":"1.00"}]
[]
[]
["TOTAL FOR THIS BILL:"]
[]
[]
["TOTAL (SUM OF GENERAL BUILDING BILLS) CARRIED FORWARD TO SUMMARY "]

{"sheet":"HVAC","index":2,"n_rows":161,"n_cols":6,"rows_kept":161,"merged":[[0,0,0,4],[0,5,1,5],[1,0,1,4],[160,0,160,3]]}
["NATIONAL HEALTH LABORATORY SERVICE (NHLS) LABORATORY AT MANAPO HOSPITAL CENTRE",{"$nulls":4},"2026-01-10"]
[" Bills of Quantities: HVAC Installation"]
["ITEM NO.","DESCRIPTION","UNIT","QTY","RATE","TOTAL"]
[]
[null,"DUCT WORK"]
[null,"Rectangular galvanized low pressure ducting "]
[null,"supported from structural steel via hangars "]
[null,"and 8mm  threaded bar"]
[null,"Note: Rate to include for support mechanisms"]
[]
[1,"Category 1 ducting","m²",175]
[{"$f":"A11+1","v":2},"Category 3 ducting","m²",7]
[]
[null,"Extra over for low pressure ducting - Category ducting"]
[]
[{"$f":"A12+1","v":3},"Category 1 - Radius bends, Square bends, 45°","no.",110]
[null,"bends, 15° bends, 90° bends, transformations, tees, stop ends"]
[null,"or branches"]
[]
[{"$f":"A16+1","v":4},"Category 3 - Radius bends, Square bends, 45°","no.",2]
[null,"bends, 15° bends, 90° bends, transformations, tees, stop ends"]
[null,"or branches"]
[]
[null,"Round un-insulated galvanized low pressure ducting not exceeding"]
[null,"1m below steel trusses or concrete soffits including support"]
[null,"mechanisms and spigots"]
[]
[{"$f":"A20+1","v":5},"500 mm Ø","m",2]
[{"$f":"A28+1","v":6},"250 mm Ø","m",4]
[{"$f":"A29+1","v":7},"200 mm Ø","m",32]
[]
[null,"FLEXIBLE UNINSULATED DUCTING"]
[null,"Uninsulated flexible ductwork not exceeding 1.5m girth, externally"]
[null,"insulated with 25mm foil faced fibreglass, including jubilee duct"]
[null,"clamps and vapour barrier tape"]
[]
[{"$f":"A30+1","v":8},"250 mm Ø","m",4]
[{"$f":"A37+1","v":9},"200 mm Ø","m",50]
[]
[null,"DIFFUSION AND GRILLES"]
[]
[{"$f":"A38+1","v":10},"(600 x 600)mm supply air grille c/w OBD, plenum box and associated spigot "]
[null,"connection - by Brian Rickard or Equal","no.",2]
[{"$f":"A42+1","v":11},"(300 x 200)mm fresh air grille c/w OBD and associated connection","no.",3]
[{"$f":"A44+1","v":12},"(400 x 200)mm fresh air grille c/w OBD and associated connection","no.",1]
[{"$f":"A45+1","v":13},"(500 x 200)mm extract air grille c/w OBD and associated connection","no.",2]
[]
[{"$f":"A46+1","v":14},"(300 x 250)mm opposed blade dampers","no.",1]
[{"$f":"A48+1","v":15},"(350 x 250)mm opposed blade dampers","no.",3]
[{"$f":"A49+1","v":16},"(200 x 250)mm opposed blade dampers","no.",1]
[17,"(500 x 300)mm opposed blade dampers","no.",1]
[18,"(400 x 300)mm opposed blade dampers","no.",1]
[19,"(250 x 250)mm opposed blade dampers","no.",1]
[{"$f":"A53+1","v":20},"200mm dia. Butterfly damper","no.",20]
[]
[{"$f":"A54+1","v":21},"Door grille (600 x 400)mm ","no.",14]
[]
[{"$f":"A56+1","v":22},"Aluminium disc valves 200 diameter","no.",20]
[]
[{"$f":"A58+1","v":23},"(600 x 600) Standard adjustable square 200 dia. CAV Swirl Diffuser complete with"]
[null,"mounting frame - by Brian Rickard or Equal","no.",6]
[]
[{"$f":"A60+1","v":24},"(250 x 250)mm storm resistant weather louvre c/w WMS","no.",2]
[{"$f":"A63+1","v":25},"(400 x 400)mm storm resistant weather louvre c/w WMS","no.",1]
[{"$f":"A64+1","v":26},"(1000 x 500)mm storm resistant weather louvre c/w WMS","no.",1]
[]
[{"$f":"A65+1","v":27},"200 mm Ø  wire mesh screen","no.",1]
[{"$f":"A67+1","v":28},"500 mm Ø  wire mesh screen","no.",1]
["Amount Carried Forward"]
["Brought forward"]
[null,"EQUIPMENT AND FANS"]
[]
[{"$f":"A68+1","v":29},"Mid-Wall inverter type heat pump unit complete with drain pump, "]
[null,"brackets and wall mounted controller as specified. "]
[null,"Cooling capacity 2.6Kw ","no.",5]
[null,"Matching condenser unit","no.",5]
[]
[{"$f":"A73+1","v":30},"Mid-Wall inverter type heat pump unit complete with drain pump, "]
[null,"brackets and wall mounted controller as specified. "]
[null,"Cooling capacity 3.5Kw ","no.",3]
[null,"Matching condenser unit","no.",3]
[]
[{"$f":"A78+1","v":31},"Mid-Wall inverter type heat pump unit complete with drain pump, "]
[null,"brackets and wall mounted controller as specified. "]
[null,"Cooling capacity 7Kw ","no.",6]
[null,"Matching condenser unit","no.",6]
[]
[{"$f":"A83+1","v":32},"Refrigerant copper piping and approved insulation similar or "]
[null,"equal to Armourflex, to units, etc., including all fitments "]
[null,"and suspending below suspension level (single way)","m",140]
[]
[{"$f":"A88+1","v":33},"PVC conduit installed in ceiling void and chased in"]
[null,"wall /partitions, wall box, wall controllers with vibration pads"]
[null,"to suite. (Allow 15m PVC conduit per unit)","Sum",1]
[]
[{"$f":"A92+1","v":34},"Condesate drain piping for each unit complete with supports, "]
[null,"reduceres, tees, bends as shown"]
[null,"20mm diameter uPVC drain piping","m",115]
[]
[{"$f":"A96+1","v":35},"Inline tube fan 200 mm Ø, 60l/s, 200Pa complete with round duct pieces, "]
[null,"flexible connections, flanges, supports, AV mounts and associated accessories  ","no.",2]
[]
[{"$f":"A100+1","v":36},"200 mm Ø  matching sound attenuator","no.",4]
[]
[{"$f":"A103+1","v":37},"Inline tube fan 315 mm Ø, 340l/s, 250Pa complete with round duct pieces, "]
[null,"flexible connections, flanges, supports, AV mounts and associated accessories  ","no.",1]
[]
[{"$f":"A105+1","v":38},"315 mm Ø  matching sound attenuator","no.",2]
[]
[{"$f":"A108+1","v":39},"Inline tube fan 200 mm Ø, 110l/s, 200Pa complete with round duct pieces, "]
[null,"flexible connections, flanges, supports, AV mounts and associated accessories  ","no.",1]
[]
[{"$f":"A110+1","v":40},"200 mm Ø  matching sound attenuator","no.",2]
[]
[{"$f":"A113+1","v":41},"Axial flow fan 500 dia. (400l/s, 180Pa, 1440rpm) c/w canvas collars"]
[null,"matching flanges, av mounting feet, mounting feet and brackets","no.",1]
[]
[{"$f":"A115+1","v":42},"Axial flow fan 800 dia. (1255l/s, 450Pa, 1440rpm) c/w canvas collars"]
[null,"matching flanges, av mounting feet, mounting feet and brackets","no.",1]
[]
[{"$f":"A118+1","v":43},"500 mm Ø  sound attenuator, selected for NC 35 ","no.",2]
[{"$f":"A121+1","v":44},"800 mm Ø  sound attenuator, selected for NC 35 ","no.",2]
[]
[{"$f":"A122+1","v":45},"Filter box (1000 x 500 x 300)mm  ","no.",1]
[]
[{"$f":"A124+1","v":46},"Filter (1000 x 500 x 50)mm ","no.",1]
[]
[{"$f":"A126+1","v":47},"Galvanized light duty cable trays including hangar supports"]
[null,"for running refrigerant piping and condensate piping","Sum",1]
[]
["Amount Carried Forward"]
["Brought forward"]
[]
[]
[null,"ELECTRICS AND CONTROLS"]
[{"$f":"A128+1","v":48},"All electrics, wiring and controls associated with the Dx air conditioning units and fans. ","Sum",1]
[]
[{"$f":"A136+1","v":49},"Galvanized light duty cable trays including hangar supports","Sum",1]
[null,"for running cables"]
[]
[null,"EXISTING EQUIPMENT"]
[{"$f":"A138+1","v":50},"Decommissioning of the existing installation including all controls and"]
[null,"electrics associated with the HVAC equipment."]
[null,"Dismantling of existing HVAC equipment.","Sum",1]
[]
[{"$f":"A142+1","v":51},"Lifting, rigging and transportation of stripped equipment for disposal","Sum",1]
{"$rows_empty":12}
["TOTAL FOR THIS BILL"]
[]
["TOTAL (SUM OF HVAC BILLS) CARRIED FORWARD TO SUMMARY "]

{"sheet":"Hot & Cold Water","index":3,"n_rows":70,"n_cols":6,"rows_kept":70,"merged":[[0,0,0,4],[0,5,1,5],[1,0,1,4],[69,0,69,3]]}
["NATIONAL HEALTH LABORATORY SERVICE (NHLS) LABORATORY AT MANAPO HOSPITAL CENTRE",{"$nulls":4},"2026-01-10"]
["Bills of Quantities: Wet Services"]
["ITEM NO.","DESCRIPTION","UNIT","QTY","RATE","TOTAL"]
[null,"In accordance with the Conditions of Contract, provide"]
[null,"for all expenses, obligations and general items pertaining"]
[null,"to such conditions and all items not specifically specified"]
[null,"or mentioned to enable the works to be completed in a"]
[null,"safe satisfactory manner.In accordance with the drawings"]
[null,"and the specification. "]
[]
[null,"WATER SUPPLIES"]
[null,"Copper piping completely installed  on supports "]
[null," and including running joints as per specification"]
[]
[1,"15mm Pipes","m",40,null,{"$f":"D15*E15","v":{"v":0,"d":"R0.00"}}]
[2,"22mm Pipes","m",175,null,{"$f":"D16*E16","v":{"v":0,"d":"R0.00"}}]
[3,"32mm Pipes","m",180,null,{"$f":"D17*E17","v":{"v":0,"d":"R0.00"}}]
[]
[null,"copper piping chased in walls"]
[]
[4,"15mm Pipes","m",25,null,{"$f":"D21*E21","v":{"v":0,"d":"R0.00"}}]
[5,"22mm Pipes","m",20,null,{"$f":"D22*E22","v":{"v":0,"d":"R0.00"}}]
[]
[null,"Extra over copper pipes for capillary fittings"]
[]
[6,"15mm Elbow","No.",60,null,{"$f":"D26*E26","v":{"v":0,"d":"R0.00"}}]
[7,"15mm Tee","No.",75,null,{"v":0,"d":"R0.00"}]
[8,"22mm Elbow ","No.",120,null,{"v":0,"d":"R0.00"}]
[9,"22mm Tee","No.",100,null,{"v":0,"d":"R0.00"}]
[10,"22-15mm Reducer","No.",60,null,{"v":0,"d":"R0.00"}]
[11,"32mm Elbow","No.",80,null,{"v":0,"d":"R0.00"}]
[12,"32mm Tee","No.",50,null,{"v":0,"d":"R0.00"}]
[13,"32-22mm Reducer","No.",30,null,{"v":0,"d":"R0.00"}]
[14,"22-15mm Reducer","No.",20,null,{"v":0,"d":"R0.00"}]
[]
[null,"Flexible connection "]
[]
[15,"15mm female to female hydraulic flexible connector","No.",18,null,{"$f":"D38*E38","v":{"v":0,"d":"R0.00"}}]
[16,"22mm female to female hydraulic flexible connector","No.",18,null,{"$f":"D39*E39","v":{"v":0,"d":"R0.00"}}]
[]
[]
[null,"LAGGING TO PIPES"]
[null,"Thermal cross-linked polyethylene foam pipe insulation"]
[null,"minimum 16mm thick lagging to hot water pipes and hot water return"]
[]
[17,"Insulation to 15mm, 22mm and 32mm pipe, couplings and fittings ","m",150,null,{"$f":"D46*E46","v":{"v":0,"d":"R0.00"}}]
[]
[null,"TAPS, VALVES, ETC., INCLUDING COUPLING TO"]
[null,"PIPES AND/OR FITTINGS"]
[]
[21,"15mm Angle Valve","No.",8,null,{"$f":"D52*E51","v":{"v":0,"d":"R0.00"}}]
[22,"22mm Isolating Valve","No.",8,null,{"$f":"D53*E52","v":{"v":0,"d":"R0.00"}}]
[23,"32mm Isolating valve","No.",1,null,{"$f":"D53*E53","v":{"v":0,"d":"R0.00"}}]
[24,"Plumbing_Joints_Aquatechnik_Safety-Ball-valve-with-butterfly-handle","No.",1,null,{"$f":"D54*E54","v":{"v":0,"d":"R0.00"}}]
[25,"M_Globe Valve - 10-50 mm - Threaded","No.",1,null,{"$f":"D55*E55","v":{"v":0,"d":"R0.00"}}]
[26,"Vacuum Breaker Backflow Valve - 15-50 mm ","No.",1,null,{"v":0,"d":"R0.00"}]
[]
[null,"Equipment"]
[]
[27,"Hydroboil ","No.",1,null,{"$f":"D60*E60","v":{"v":0,"d":"R0.00"}}]
[]
[28,"150l evacuated tube solar geysers complete with solar controller and backup ","No.",2,null,{"$f":"D62*E62","v":{"v":0,"d":"R0.00"}}]
[null,"3kw electrical element "]
[]
[29,"water softening  plant for removal of calcium and magnesium max flow ","No",1,null,{"$f":"E65*D65","v":{"v":0,"d":"R0.00"}}]
[null,"1l per second at 350kpa"]
[]
["TOTAL FOR THIS BILL "]
[]
["TOTAL (SUM OF HOT AND COLD WATER BILLS) CARRIED FORWARD TO SUMMARY "]

{"sheet":"Fire","index":4,"n_rows":44,"n_cols":6,"rows_kept":44,"merged":[[0,0,0,4],[0,5,1,5],[1,0,1,4],[43,0,43,3]]}
["NATIONAL HEALTH LABORATORY SERVICE (NHLS) LABORATORY AT MANAPO HOSPITAL CENTRE",{"$nulls":4},"2026-01-10"]
["Bills of Quantities: Wet Services"]
["ITEM NO.","DESCRIPTION","UNIT","QTY","RATE","TOTAL"]
[null,"Supply, delivery, installation, commissioning and testing of the "]
[null,"Fire Protection Systems as per SANS & SABS regulations"]
[]
[null,"Fire singage as per SANS 1186-1, SANS 1186-3,"]
[null,"SANS 1186-5 and SANS 1464-22"]
[]
[1,"Photoluminescent type c/w fittings","No.",20,{"v":20,"d":"R20.00"},{"$f":"D10*E10","v":{"v":400,"d":"R400.00"}}]
[]
[null,"Fire piping as per SANS 10400-W"]
[]
[2,"Diam. 110 mm Class 16 mPVC pipe c/w fittings","m",10,null,{"$f":"D14*E14","v":0}]
[]
[3,"Diam. 100 mm black medium steel pipe c/w fittings & painting as per spec","m",30,null,0]
[]
[null,"Fire hose reel as per SANS 543"]
[]
[4,"30 m fire hose reel c/w fittings","No.",2,null,0]
[]
[null,"Fire extinguisher as per SANS 1910"]
[]
[5,"4.5 kg dry chemical powder fire extinguisher c/w fittings","No.",8,null,0]
[]
[6,"Fire blankets ","No.",4,null,0]
[]
[7,"medical emergency kit ","No.",4,null,0]
{"$rows_empty":13}
["TOTAL FOR THIS BILL",{"$nulls":4},{"$f":"SUM(F15:F41)","v":0}]
[]
["TOTAL (SUM OF FIRE BILLS) CARRIED FORWARD TO SUMMARY "]

{"sheet":"Electrical","index":5,"n_rows":317,"n_cols":7,"rows_kept":317,"merged":[[0,0,0,4],[0,6,1,6],[1,0,1,4],[316,0,316,3]]}
["NATIONAL HEALTH LABORATORY SERVICE (NHLS) LABORATORY AT MANAPO HOSPITAL CENTRE",{"$nulls":5},"2026-01-10"]
["Bills of Quantities: Electrical"]
["ITEM NO.","DESCRIPTION","UNIT","QTY","MATERIAL RATE","LABOUR RATE","TOTAL"]
["2","Preliminary & General"]
[]
[2.1,"Conditions of Contract and Technical Specifications"]
["2.1.1","Amount required to comply with the Conditions of Contract"]
["2.1.2","Amount required to comply with the Technical Specifications"]
["2.1.3","Amount required to comply with the Health & Safety Specifications"]
[]
[2.2,"Site Establishment"]
["2.2.1","Amount required as a Fixed Cost"]
["2.2.2","Amount required as a Time Variable Cost"]
["2.2.3","Amount required as a Value Variable Cost"]
[]
[]
[]
["TOTAL FOR THIS BILL"]
[3,"LIGHTING & POWER BOQ"]
["3.1","Distribution Boards"]
[null,"To comply with SANS 10142-1"]
[null,"Supply, delivery and install  DB's constructed in sections"]
[null,"with barriers between and separate doors to each section,"]
[null,"sub-frames,chassis, fixtures, internal wiring, switchgear "]
[null,"and equipmentas detailed in Standard Specification"]
["3.1.1","DB Board with equipment DB-LAB, as specified (Refer to schematic)","No",1]
["3.1.2","DB-SANBS, Exist.Compliance ","No",1]
["3.1.3","DB-Separation, Exist.Compliance ","No",1]
[]
["3.2","Conduit"]
[null,"PVC fixed in chase or Ceiling void"]
["3.2.1","20mmØ","m",{"v":1514,"d":"1,514"}]
["3.2.2","25mmØ","m",508]
["3.2.3","25mmØ Bosal Conduit","m",322]
[]
["3.3","PVC Conduit Boxes"]
["3.3.1","60mm  Round Boxes","No",110]
["3.3.2","100 x 100 x 50 (Steel)","No",75]
["3.3.3","100 x 50 x 50 (Steel)","No",8]
["3.3.4","100x100 Cover plate ","No",12]
[]
[3.4,"P9000 trunking","m",380]
["3.4.1","Tee's","No",4]
["3.4.2","90° bends","No",2]
[]
["3.5","400mm wire mesh tray","m",295]
["3.5.1","Tee's","No",3]
["3.5.2","90° bends","No",2]
[]
[3.6,"300mm cable tray","m",70]
["3.6.1","4-way ","No",1]
["3.6.2","Tee's","No",1]
["3.6.3","90° bends","No",1]
[]
[3.7,"Wiring"]
[null,"PVC insulated copper conductors drawn into"]
[null,"conduit, wiring trunking or powerskirting"]
["3.7.1","2.5mm² PVC wire","m",{"v":4539,"d":"4,539"}]
["3.7.2","4mm² PVC wire","m",350]
["3.7.3","Draw Wire","m",{"v":1000,"d":"1,000"}]
[]
[3.8,"Switches - Socket Outlets - Isolators"]
[null,"Surface or flush mounted complete with covers"]
["3.8.1","5A unswitched socket outlet","No",95]
["3.8.2","16A ZA/Euro combined socket outlet","No",47]
["3.8.3","16A ZA/Euro double socket outlet","No",1]
["3.8.4","Waterproof Surface16A ZA/Euro double socket outlet IP66 rated","No"]
["3.8.5","16A single dedicated socket outlet - chamfered earth pin red body","No",44]
["3.8.6","16A double dedicated socket outlet - chamfered earth pin red body","No",4]
["3.8.7","Data outlet with cover plate","No",8]
[]
[]
[null,"Amount Carried Forward"]
[null,"Brought forward"]
[]
["3.8.8","Ceiling mount motion sensors 16A rated","No",14]
["3.8.9","Relay & Controlled Module, for lighting & HVAC","No",2]
["3.8.10","TV outlet with cover plate","No",0]
["3.8.11","Telephone outlet with cover plate","No",8]
["3.8.12","Complete 16A 1-lever/1-way light switch","No",3]
["3.8.13","Complete 16A 1-lever/2-way light switch","No",2]
["3.8.14","Complete 16A 2-lever/1-way light switch","No",2]
["3.8.18","20A DP isolator ","No",25]
["3.8.22","32A DP isolator  ","No",16]
["3.8.23","20A TP isolator","No",4]
[]
[3.9,"Power Skirting"]
[null,"Supply, Delivery and Installation of steel 2 compartment power skirting"]
["3.9.1","2 compartment power skirting straight length","m",120]
["3.9.2","Power skirting ends","No",42]
["3.9.3","Power skirting elbows","No",4]
["3.9.4","Power skirting risers","No",16]
["3.9.5","16A ZA/Euro combined normal socket outlet on power skirting","No",25]
["3.9.6","16A dedicated socket outlet on power skirting - chamfered earth pin red body","No",25]
["3.9.7","Complete Data infrastructure on power skirting","No",10]
["3.9.8","Complete Telephone infrastructure on power skirting","No",10]
[]
[{"v":3.1,"d":"3.10"},"Luminaires"]
[null,"Supply and installation of luminaires  complete with lamps, low brightness louvers, control gear, and mounting accessories, with 5A  plug top(3m). Refer to schedule of light fittings"]
[]
["3.10.1","Type : 70W, 4000K recessed 1705mm luminaire.\nregent lighting r-line.","No",28]
[]
["3.10.2","Type : 24W LED, 4000K recessed 580mm luminaire.\nRegent Lighting NASA.\n","No",9]
[]
["3.10.3","Type P1: 36W LED, 4000K recessed 600x600mm panel light fitting. Regent Lighting Luxon Opal.","No",48]
[]
["3.10.4","Type B1: 20W LED, 4000K recessed 1200x600mm panel\nlight fitting.","No",9]
[]
[]
[3.11,"Supply and Install Earthing and Bonding for the installation"]
[null,"Earthing of all buildings to comply with the latest SANS 10142 1&2:2009, as revised  Code of Practice, as revised for The Wiring of Premises as amended and as specified.  Bonding of all hot, cold and waste pipes complete with 12,5mm x 1mm thick solid or perforated copper tape including terminations."]
["3.11.1","Earth and Bond Distribution Board","No",1]
["3.11.2","Earth and Bond Water Pipes per building ","sum",1]
["3.11.3","Earth and Bond Gutters and Roof per building","Sum",1]
["3.11.4","Testing of the Earth installation by a Specialist Contractor","Sum",1]
[]
[null,"Amount Carried Forward"]
[null,"Brought forward"]
[3.12,"Lightning Protection Installation"]
[null,"Supply, install and test a complete lightning protection installation, including aluminium and copper conductors, test joints, PVC conduit, earth electrodes for the following builidng but not limited to: -"]
["3.12.1","Manapo NHLS Laboratory as specified ","sum",1]
[]
[3.13,"Testing and Commissioning "]
[null,"Inspections, testing and handing over of the complete installation in the presence of the  Engineer and certify the results on the Certificate of compliance by an accredited person.: including issuing of the CoC","sum",4]
[]
[null,"Rates shall be deemed to include all obligations under the Contract Documents, including Technical Submittals, Workshop Drawings, Delivery of the equipment to site, Site storage, Asset Tagging of equipment, Testing & Commissioning, and AS-Built drawings, Occupational Health and safety adherence. No separate payment will be made for these. "]
[]
[]
[4,"Electrical Distribution Boards"]
[null,"Distribution panels prewired, complete with consumer circuit breakers and locks to Municipality specification. Equipment as per schematic diagrams."]
[]
[4.1,"Feeder Cables"]
[null,"Supply, delivery and installation of 600 / 1000V"]
[null,"PVCSWAPVC copper or aluminium cables installed on suspended cable rack or drawn through sleeves. Cable rack & sleeves measured elsewhere."]
["4.1.1","70mm² x 4 core Copper cable","m",72]
["4.1.2","Complete 70mm² x 4 core electrical cable ends","No",2]
["4.1.3","6mm² x 4 core Copper cable","No",41]
["4.1.4","Complete 6mm² x 4 core electrical cable ends","m",4]
["4.1.5","4mm² x 4 core Copper cable","No",53]
["4.1.6","Complete 4mm² x 4 core electrical cable ends","m",4]
["4.1.7","2.5mm² x 4 core Copper cable","No",20]
["4.1.8","Complete 2.5mm² x 4 core electrical cable ends","m",6]
["4.1.9","4mm² x 2 core Copper cable","m",185]
["4.1.10","Complete 4mm² x 2 core electrical cable ends","No",16]
["4.1.11","2.5mm² x 2 core Copper cable","m",350]
["4.1.12","Complete 2.5mm² x 2 core electrical cable ends","No",32]
["4.1.13","50mm² Bare Copper Earth run in parallel with above cables including terminations","m",70]
["4.1.14","4mm² Bare Copper Earth run in parallel with above cables including terminations","m",41]
["4.1.15","2.5mm² Bare Copper Earth run in parallel with above cables including terminations","m",610]
[]
[null,"Rates shall be deemed to include all obligations under the Contract Documents, including Technical Submittals, Workshop Drawings, Delivery of the equipment to site, Site storage, Asset Tagging of equipment, Testing & Commissioning), and AS-Built drawings, Occupational Health and safety adherence. No separate payment will be made for these."]
["TOTAL FOR THIS BILL"]
[5,"Intercom System & PA Installation"]
[5.1,"Complete New 2 way Intercom system "]
[]
["5.1.1","Intercom master station ","No",1]
[]
["5.1.2","2way Robust Metal substations (speakers) ","No",3]
[]
["5.1.3","External Intercom speakers","No",2]
[]
["5.1.4","Emergency panic button","No",4]
[]
["5.1.5","Desk /Wall mount Microphone(Robust)","No",1]
[]
["5.1.6","Round Ceiling Mount 6W Speaker ","No",5]
[]
["5.1.7","Complete Management Zone Amplifier system with adjustable attenuators for Public Address and Evacuation System complete","No",1]
[]
["5.1.8","Twisted pair audio cable","m",640]
[]
["5.1.9","Multi core communication cable","m",200]
[]
["5.1.10","25mm dia PVC conduit","m",200]
[]
["5.1.11","20mm dia PVC conduit","m",250]
[]
["5.1.12","Intercom Terminal Box","No",1]
[]
["5.1.13","Rack and equipment assembly","Sum",1]
[]
["5.1.14","Equipment manual & Training","Sum",1]
[]
["5.1.15","Test, commissioning, labeling and handing over fully operational system to client and consulting engineer’s requirement  ","Sum",1]
[]
["5.1.16","Sundry equipment to make sytem to be fully functional","Sum",1]
[]
[null,"Rates shall be deemed to include all obligations under the Contract Documents, including Technical Submittals, Workshop Drawings, Delivery of the equipment to site, Site storage, Asset Tagging of equipment, Testing & Commissioning, and AS-Built drawings, Occupational Health and safety adherence. No separate payment will be made for these. "]
[]
[]
["TOTAL FOR THIS BILL"]
[6,"ACCESS CONTROL INSTALLATION "]
[]
[]
[6.1,"ACCESS CONTROL INSTALLATION "]
[]
["6.1.1","Access Control Viewing Workstation,  including 24\" monitor, keyboard, mouse, etc.","No.",1]
[]
["6.1.2","Access Control - Enrolment Device.","No.",1]
[]
[null,"Access Control Head End (Installed in Network Equipment Room)."]
[]
["6.1.2","24 Port POE Switch for Access Control, Layer 3 Capable for Snooping and Multicasting, 2 Gb SFP Ports.","No.",1]
[]
["6.1.3","Network Access Control Server for 1U Rack, Keyboard, Mouse etc as specified.","No.",1]
[]
[]
[null,"Software."]
[]
["6.1.5","Access Control  Software including Integration to CCTV System on offer.","No.",1]
[]
["6.1.6","Access Control Card Reader Controller as specified.","No.",16]
[]
["6.1.7","Access Control Door Controller as specified.","No.",9]
[]
["6.1.8","12V DC 7Ah Battery Backup Unit as specified.","No.",9]
[]
["6.1.9","Access Control Card Reade as specified.","No.",16]
[]
["6.1.10","Magnetic Lock as specified.","No.",9]
[]
["6.1.11","Electric Strike Unit as specified.","No.",9]
[]
["6.1.12","Medium Duty flush mounted door closer and accessories as specified.","No.",9]
[]
["6.1.12","Release Push button as specified.","No.",9]
[]
["6.1.13"]
[]
[null,"Cabling."]
[]
["6.1.14","Mylar 0,5mm2 2core communication cable.","m",550]
[]
["6.1.15","1,5mm2 2core PVC Cu Cable.","m",200]
[]
["6.1.16","2,5mm2 2core PVC Cu Cable.","m",350]
[]
["6.1.17","Low Loss Multi-mode Fibre Optic 4 Core Cable.","m",660]
[]
["6.1.18","CAT-6 UTP cable.","m",650]
[]
["6.1.19","RJ45 CAT-6 UTP cable terminations.","No.",32]
[]
["6.1.20","15U Floor standing Enviro-Cabinets with fans","No.",1]
[]
[null,"Amount Carried Forward"]
[null,"Brought forward"]
[null,"Training of Staff."]
[]
["6.1.21","Training of control room and supervisor staff (3 sessions).","No.",1]
[]
["6.1.22","Programming of the Complete Access Control Installation.","No.",1]
[]
["6.1.23","Testing and Commisioning of the Entire Access Control System installation, as witnessed by the Engineer and  Project Manager.","No.",1]
[]
["6.1.24","Final Completion Certificate.","No.",1]
[]
["6.1.25","Sundry equipment to make sytem to be fully functional","Sum",1]
[]
[null,"Rates shall be deemed to include all obligations under the Contract Documents, including Technical Submittals, Workshop Drawings, Delivery of the equipment to site, Site storage, Asset Tagging of equipment, Testing & Commissioning, and AS-Built drawings, Occupational Health and safety adherence. No separate payment will be made for these. "]
[]
["TOTAL FOR THIS BILL"]
[7,"Closed-Circuit Television(CCTV Installation)"]
[]
[]
[7.1,"Supply and install new CCTV equipment "]
[]
["7.1.1","High definition IP Mini Dome Camera 3MP IR30 WDR 3.5mm IP67 POE in Housing ","No.",8]
[]
["7.1.2","High definition IP Bullet Camera POE in Housing - External","No.",2]
[]
["7.1.3","32 Channel NVR(forty days of data storage) complete with Hard Drives & Software","No.",1]
[]
["7.1.4","8 Port Switch PoE","No.",2]
[]
["7.1.5","Monitors (Smart 55\"LCD (liquid crystal display) HD,properly secured against theft ","No.",2]
[]
["7.1.6","Desktop Remote Viewing PC , USB Keyboard & Mouse","No.",1]
[]
["7.1.8","Blue Cat6a Cabling","m",{"v":1100,"d":"1,100"}]
[]
["7.1.9","25mmØ Bosal Conduit","m",350]
[]
["7.1.10","25mmØ PVC Conduit","m",811]
[]
["7.1.11","Complete Data & Telephone Structured Cabling For Electronics Systems","Sum",1]
[]
["7.1.12","System Comissioning","Sum",1]
[]
["7.1.13","Sundry equipment to make systems above to be fully functional. Provide breakdown of these items below:","Sum",1]
[]
["TOTAL FOR THIS BILL"]
[8,"ALARM SYSTEM"]
[null,"Supply and install Intruder Alarm System.\tThe Intruder Alarm System must comply with                         SANS 60839-2-6:2010 "]
["8.1.1","Intrusion  alarm Main control panel with 72 hours back-up battery, PSU, radio link, as specified:","No",1]
["8.1.3","Complete display/mimic panel with an LED for each localised alarm ","No",1]
["8.1.4","Complete LCD keypad panel with multiple programmable functions , as specified","No",1]
[]
["8.1.5","Complete Passive Infra red motion sensors, as specified","No",11]
[]
["8.1.6","Complete burglar alarm sounder and LED cluster lamp indicator, as specified","No",2]
[]
["8.1.7","Complete panic button, as specified","No",4]
[]
[81.8,"Complete new Burglar localised alarm system, as specified","Sum",1]
[]
[]
["8.1.9","Complete Intrusion alarm cabling with labeling, as specified.","m",1100]
[]
["8.1.10","Test, commissioning, labeling and handing over fully operational system to client and consulting engineer’s requirement  ","Sum",1]
[]
["8.1.11","Sundry equipment to make sytem to be fully functional","Sum",1]
[]
[]
["TOTAL FOR THIS BILL"]
[]
["TOTAL (SUM OF ELECTRICAL BILLS) CARRIED FORWARD TO SUMMARY "]

{"sheet":"Summary","index":6,"n_rows":35,"n_cols":3,"rows_kept":35,"merged":[[1,1,2,2]]}
[]
[null,"REFURBISHMENT OF MANAPO HOSPITAL NHLS LABORATORY"]
[]
[null,"SUMMARY"]
[]
[null,"DESCRIPTION","AMOUNT"]
[]
[null,"PRELIMINARIES AND GENERALS",{"$f":"'P&G'!G890","v":0}]
[]
[null,"GENERAL BUILDING WORKS",{"$f":"'General Building BOQ'!G1210","v":0}]
[]
[null,"HVAC",{"$f":"HVAC!F161","v":0}]
[]
[null,"HOT & COLD WATER",{"$f":"'Hot & Cold Water'!F70","v":0}]
[]
[null,"FIRE",{"$f":"Fire!F44","v":0}]
[]
[null,"ELECTRICAL",{"$f":"Electrical!G317","v":0}]
[]
[]
[]
[null,"SUB TOTAL",{"$f":"C16+C14+C12+C8+C10","v":0}]
[]
[null,"ADD: "]
[]
[]
[null,"Construction Contingencies @ 10%",{"$f":"+C22*10%","v":0}]
[]
[]
[null,"SUB TOTAL",{"$f":"SUM(C22:C28)","v":0}]
[]
[]
[null,"ADD VALUE ADDED TAX @ 15%",{"$f":"C30*0.15","v":0}]
[]
[null,"TOTAL",{"$f":"C30+C33","v":0}]